Workbook

Sheet Information
A1: Information
B2: Based on Alklaline A-Series from NEL and Haber Bosch from Haldor Topsoe
B3: Economic Analysis done by Massimiliano Cervo and Ed Bodmer with Excel, with Matlab and Information from Global Solar Atlas, HiSys
B4: Cost Approximations done with Lead Software
B5: Oxygen Sales Revenue is not considered in this Analysis.
B6: Based on AdAstra Project it could improve the IRR of the Overall Project Leveling the Ammonia Price
B7: 79% of Ammonia Demand for Fertilizer
B8: CAGR 1.9% p.a for Ammonia Demand
B9: Tipical Ammonia Plant produced 1500 Tn/Day
B10: Mass and Energy Balance done with Sci Kit Learn with Curve Optimiser
B11: Business Case for Investors -> Trasnporting Renewable Energy Overseas in the way of Ammonia
B12: Ammonia is currently shipped at -33 Celsius and Ambient Pressure in LPG ships.
B13: Shipping Cost Depends on shipping distance and speed.
B14: Deadweight Tonnage is 90% of cargo weight.
B15: Shipping Cost -> 43 to 59 EUR/TnNH3 Distance: 13500 km
B16: China consumes 33.7% of Global Ammonia Production
B17: Europe Consumes 21.5% of Global Ammonia Production.
B19: Inputs for the simulation
D20: Energy Load Curves vs Time
D21: Electricity Costs
D22: Component CapEx + Size with Economies of Scale
D23: OpEx vs Time
D24: WorldWide Data 2021
B26: Renewable Energy
E27: Mercado de Leiloes 2021
D28: Fontes | E28: # Projects | F28: Power | G28: Min Price | H28: Max Price | I28: Average
D29: Wind | E29: =4+3 -> 7 | F29: =251.7+167.8 -> 419.5 | G29: 26.19 | H29: 28.98 | I29: =AVERAGE(G29:H29) -> 27.585
D30: Solar | E30: =2+1 -> 3 | F30: =169.3+100 -> 269.3 | G30: 23.65 | H30: 26.21 | I30: =AVERAGE(G30:H30) -> 24.93
D31: Hydro | E31: =3+3 -> 6 | F31: =35.25+77.02 -> 112.27 | G31: 39.85 | H31: 42.12 | I31: =AVERAGE(G31:H31) -> 40.985
D32: Thermal | E32: =2+3 -> 5 | F32: =91.14+92.5 -> 183.64 | G32: 33.77 | H32: 37.69 | I32: 35.73
D34: CapEx for Solar | E34: 850000 | F34: USD/MW | G34: Installed | I34: TURNKEY PRICE
B36: Electrolysis Plant
D37: Capacity | E37: MW | F37: 400
D38: System CapEx | E38: USD/kWe | F38: 630
D39: Electrolyzer Stack Weight | E39: % | F39: 0.46
D40: Plant Lifetime | E40: Years | F40: 25
D41: Stack Lifetime | E41: Hours | F41: 67500
D42: Electrolyzer Load Factor - Maximum Possible | E42: % | F42: 0.96
D43: Electrolyzer Efficiency | E43: kWh/kg | F43: 56
D44: Learning Curve | E44: % | F44: 0.01
D45: OpEx as a Function of CapEx | E45: % | F45: 0.015
D46: Degradation of the Stack | E46: % p.a. | F46: 0.01
D47: Water Requirement | E47: L/m3H2 | F47: 1
D48: Area for 400 MW | E48: km2 | F48: 30
D49: Operating Pressure | E49: Bar | F49: 5
D50: O2:H2 Mass Ratio | E50: Ratio | F50: 8:1
D51: Largest Size Unit | E51: MW | F51: 20
D52: Water Cost | E52: USD/m3 | F52: 0.5
B54: Economics
D55: Inflation | E55: % p.a. | F55: 0.0321
D56: Tax Rate | E56: % | F56: 0.25
D57: Cost of Equity | E57: % | F57: 0.12
D58: Cost of Debt | E58: % | F58: 0.062
D59: Interest Rate - Same as cost of Debt | E59: % | F59: =F58 -> 0.062
D60: Ideal Debt Amount in % | E60: % | F60: 0.7
D61: Maximum Equity % possible | E61: % | F61: 0.3
B63: Ammonia - Haber Bosch
D64: Working Pressure | E64: Bar | F64: 150
D65: Operating Temperature | E65: Celsius | F65: 400
D66: Conversion Efficiency | E66: % | F66: 0.97
D67: Catalyst Lifetime | E67: Years | F67: 80000
D68: Catalyst Replacement Cost as % of CapEx | E68: % | F68: 0.3
D69: H2:N2 Mass Ratio | E69: Ratio | F69: 6:28
D70: Power Consumption for the Haber Bosch Process | E70: MWh/TnNH3 | F70: 0.648
D71: Load Factor | E71: % | F71: 96%
D72: Spilled Energy | E72: % | F72: 0.4%
D73: Air Separation Unit CapEx | E73: USD/TnN2 | F73: 22.2
D74: Haber Bosch Reactor CapEx | E74: USD/TnNH3 | F74: 3018
D75: Air Separation Unit Power Consumption | E75: MWh/TnNH3 | F75: 0.90
D76: Minimum Load | E76: % | F76: 50%
B78: Compression
D79: Hydrogen Compression Efficiency | E79: % | F79: 70%
D80: Nitrogen Compression Efficiency | E80: % | F80: 0.85
D81: Nitrogen Amount in Air for Every Tonne | E81: Tn | F81: 0.756
D82: Oxygen Amount in Air for Every Tonne | E82: Tn | F82: 0.231
D83: CapEx | E83: USD/kW | F83: 200
D84: Power Consumption | E84: MWh/TnNH3 | F84: 1
D85: Nitrogen Compression Stages | E85: Stages | F85: 5
D86: Final Pressure For N2 and H2 | E86: Bar | F86: 150
B88: Cooling Unit
D89: Water Consumption | E89: TnH20/TnNH3 | F89: 170
B91: Additional
D92: EPC as % of CapEx | E92: % | F92: 0.28
D93: Cost of Services and Civil Work as % of TCI | E93: % | F93: 0.1
B95: Accronyms
D96: PEC = Purchased Equipment Cost
D97: TCI = Total Capitasl Invested
D98: ASU = Air Separation Unit
D99: LCOE = Levelized Cost of Energy
D100: OpEx = Operating Expenditures
D101: WACC = Weighted Average Cost of Capital
D102: p.a. = Per Annum
D103: CapEx = Capital Expenditures
D104: LCOA = Levelized Cost of Ammonia
D105: LCOH = Levelized Cost of Hydrogen
B107: Benchmark Prices
D108: Target Electricity Price | E108: USD/MWh | F108: 20
D109: Maximum Electricity Price | E109: USD/MWh | F109: 35
D110: Levelized cost of Hydrogen | E110: USD/kg | F110: 2
D111: Minimum Ammonia Price in Spot Market | E111: USD/TnNH3 | F111: 300
D112: Maximum Ammonia Price in Spot Market | E112: USD/TnNH3 | F112: 500
B114: Carbon Footprint
D115: Natural Gas Required for Ammonia production Formula | E115: = 25000 * X / 200
D116: Emissions Mitigated Only for the Haber Bosch | E116: = 68000 * X / 25000
B118: Storage Unit
D119: Storage Pressure | E119: Bar | F119: 18
D120: Double Isolation | E120: m | F120: 1
D121: Suggested Storage Limit | E121: Days | F121: 30
D122: Freeboard | E122: % | F122: 0.1
D123: Height for 9000 Tn | E123: m | F123: 22
D124: Widht for 9000 Tn | E124: m | F124: 29
D125: Boil-Off | E125: % p.day | F125: 0.0003
D126: CapEx | E126: USD/TnNH3 | F126: 728
D127: Fix OpEx as % of CapEx | E127: % p.a. | F127: 4
D128: OpEx Variable | E128: USD/TnNH3 | F128: 0.0012
D129: Lifetime | E129: Years | F129: 30
B131: Stoichiomestry
D132: Multiplying Factor Calculating N2 from H2 | E132: Factor | F132: 4.6
D133: Multiplying Factor to Calculate NH3 from H2 | E133: Factor | F133: 5.6
D135: Nitrogen Density | E135: kg/m3 | F135: 1.15
D136: Hydrogen Density | E136: kg/m3 | F136: 0.082
B138: Equations Based on Economies of Scale for Haber Bosch based on Brown
D139: CAPEX synthesis loop = 23850000 * Capacity (TnNH3/day)^-1.340 + 173500
D141: CAPEX asu = 1606000 * Capacity (TnN2/day)^-0.6249 + 9318
D143: CAPEX nh3 storage = 46600 * Capacity (TnNH3)^-0.8636 + 536.9
B145: PV Information from Vendors
C146: Fixed Titled
D147: Maximum CapEx | E147: USD/kWp | F147: 678
D148: Minimum CapEx | E148: USD/kWp | F148: 505
D149: Fix OpEx Max | E149: USD/kWp p.a. | F149: 15.44
D150: Fix OpEx Min | E150: USD/kWp p.a. | F150: 9.08
D151: Lifetime | E151: Years | F151: 30
C153: Single Axis Tracking
D154: Maximum CapEx | E154: USD/kWp | F154: 746
D155: Minimum CapEx | E155: USD/kWp | F155: 555
D156: Fix OpEx Max | E156: USD/kWp p.a. | F156: 17.55
D157: Fix OpEx Min | E157: USD/kWp p.a. | F157: 9.99
D158: Lifetime | E158: Years | F158: 30
B160: Wind Onshore from Vestas
D161: CapEx | E161: USD/kWp | F161: 1345
D162: Fix OpEx as % of CapEx | E162: % p.a. | F162: 0.02
D163: Lifetime | E163: Year | F163: 25

Sheet Results
C1: Amount | E1: Expense
B2: Power | C2: =LCOs!F122 -> 276315.4286 | D2: MWh/Yr | E2: =LCOs!F124 -> 6888543.634 | F2: USD/Yr | T2: Amount | V2: Expense
S3: Power | T3: =LCOs!G86 -> 3363840 | U3: MWh/Yr | V3: =LCOs!G93 -> 88064382.83 | W3: USD/Yr
B4: Air | C4: =LCOs!F114 -> 354250.5495 | D4: Tn/Yr
S5: Water | T5: =LCOs!H79 -> 660754.2857 | U5: m3/Yr | V5: =LCOs!H81 -> 330377.1429 | W5: USD/Yr
C8: Production | E8: Cost | T8: Production | V8: Cost
B9: Nitrogen | C9: =LCOs!F116 -> 276315.4286 | D9: Tn/Yr | E9: =LCOs!F134 -> 27.00907005 | F9: USD/tNn2 | S9: Hydrogen | T9: =LCOs!H108/1000 -> 60068.57143 | U9: Tn/Yr | V9: =LCOs!H110 -> 2.018638274 | W9: USD/kgH2
C13: Amount | E13: Expense
B14: Power | C14: =LCOs!F147 -> 336384 | D14: MWh/Yr | E14: =LCOs!F149 -> 8386053.12 | F14: USD/Yr
C16: Amount | E16: Expense
B17: Power | C17: =LCOs!F179 -> 261033.984 | D17: MWh/Yr | E17: =LCOs!F181 -> 6507577.221 | F17: USD/Yr
K23: NH3 Production | M23: =LCOs!F220 -> 326292.48 | N23: Tn/Yr
F24: CHOOSE YOUR POWER SCENARIO BELOW | K24: Cost of Ammonia | M24: =LCOs!F221 -> 488.7507349 | N24: USD/Tn
B26: Summary | J26: Power Consumption Summary | P26: Investment Summary
B27: Total Power Req | E27: =C17+C14+T3+C2 -> 4237573.413 | F27: MWh/Yr | J27: Electrolysis | L27: =T3 -> 3363840 | M27: MWh/Yr | N27: =L27/$E$27 -> 0.7938127963 | P27: Electrolysis | R27: =LCOs!F62 -> 136080000 | S27: USD | T27: =R27/$R$31 -> 0.4064113206
B28: Total Water Req | E28: =T5 -> 660754.2857 | F28: m3/Yr | J28: ASU | L28: =C2 -> 276315.4286 | M28: MWh/Yr | N28: =L28/$E$27 -> 0.06520605112 | P28: ASU | R28: =LCOs!F126 -> 574479.1309 | S28: USD | T28: =R28/$R$31 -> 0.001715717389
B29: Total H2 Produced | E29: =T9 -> 60068.57143 | F29: Tn/Yr | J29: Compression | L29: =C14 -> 336384 | M29: MWh/Yr | N29: 0.07938127963 | P29: Compression | R29: =LCOs!F153 -> 3378713.48 | S29: USD | T29: 0.01009073639
B30: Total NH3 Produced | E30: =M23 -> 326292.48 | F30: Tn/Yr | J30: Haber Bosch | L30: =C17 -> 261033.984 | M30: MWh/Yr | N30: 0.06159987299 | P30: Haber Bosch | R30: =LCOs!F293 -> 194800000 | S30: USD | T30: 0.5817822256
P31: Initial Investment | R31: =SUM(R27:R30) -> 334833192.6
B32: Levelized Cost of Hydrogen | E32: =V9 -> 2.018638274 | F32: USD/kg | J32: Expense Summary
B33: Levelized Cost of Ammonia | E33: =M24 -> 488.7507349 | F33: USD/Tn | J33: Electrolysis | L33: =LCOs!#REF! ->  | M33: USD/Yr | N33: =L33/$L$37 -> 
J34: ASU | L34: =LCOs!F130 -> 7463022.765 | M34: USD/Yr | N34: =L34/$L$37 -> 
B35: IRR | E35: ='Fin. Model NH3'!F88 -> 0.0794 | J35: Compression | L35: =LCOs!F160 -> 8700946.253 | M35: USD/Yr
B36: NPV | E36: ='Fin. Model NH3'!F89 -> 1.988788711e-07 | J36: Haber Bosch | L36: =LCOs!F218 -> 159475689.4 | M36: USD/Yr
J37: Total Plant Expense | L37: =SUM(L33:L36) ->  | M37: USD/Yr

Sheet Brazil Resources

Sheet Flow Diagram
B1: Power to Ammonia configuration. Commercially available today, Hydrogen compression can be done in one cycle vs the one from nitrgoen in 5 stages. LT = Low Temperature <100. HT = High Temperature >150
B2: Green Arrows mean Electricity Flow
B3: Blue arrows mean the hydrogen ammonia flow.
B4: Orange arrows are waste heat.
B5: Red arrows are for the ammonia.

Sheet Plant Diagram

Sheet Replacement Example 1
B3: Inputs
C4: Total Life | D4: 20
C5: Replacement | D5: 10
C7: Initial Cost | D7: 100000
C8: Replacement | D8: 50000
C10: Target IRR | D10: 0.1
C11: PMT for 20 | D11: =PMT(D10,D4,-1) -> 0.1174596248
C12: PMT for 10 | D12: =PMT(D10,D5,-1) -> 0.1627453949
B14: LCOE Option 1
C16: Method 1 - Split | D16: Base | E16: Replacement | F16: Total
C18: Cap Exp | D18: =D7-D8 -> 50000 | E18: =D8 -> 50000 | F18: =E18+D18 -> 100000
C19: Recovery Factor | D19: =D11 -> 0.1174596248 | E19: =D12 -> 0.1627453949
C20: Capital Recovery | D20: =D18*D19 -> 5872.981239 | E20: =E18*E19 -> 8137.269744 | F20: =E20+D20 -> 14010.25098
B22: LCOE Option 2
C23: Replacement | D23: =D8 -> 50000
C24: PV of Replacement | D24: =D23/(1+D10)^D5 -> 19277.16447
C26: Up Front Cost | D26: =D7 -> 100000
C27: PV of Replacement | D27: =D24 -> 19277.16447
C28: Total Capital Cost | D28: =D26+D27 -> 119277.1645
C30: Recovery Factor | D30: =D11 -> 0.1174596248
C31: Total Recovery | D31: =D30*D28 -> 14010.25098
B33: Financial Model
C34: Time Period | G34: 1 | H34: 2 | I34: 3 | J34: 4 | K34: 5 | L34: 6 | M34: 7 | N34: 8 | O34: 9 | P34: 10 | Q34: 11 | R34: 12 | S34: 13 | T34: 14 | U34: 15 | V34: 16 | W34: 17 | X34: 18 | Y34: 19 | Z34: 20
C35: Revenues | D35: =D31 -> 14010.25098 | G35: =$D$35 -> 14010.25098 | H35: =$D$35 -> 14010.25098 | I35: 14010.25098 | J35: 14010.25098 | K35: 14010.25098 | L35: 14010.25098 | M35: 14010.25098 | N35: 14010.25098 | O35: 14010.25098 | P35: 14010.25098 | Q35: 14010.25098 | R35: 14010.25098 | S35: 14010.25098 | T35: 14010.25098 | U35: 14010.25098 | V35: 14010.25098 | W35: 14010.25098 | X35: 14010.25098 | Y35: 14010.25098 | Z35: 14010.25098
C36: Up-Front Capital | D36: =D26 -> 100000 | F36: =D36 -> 100000
C37: Replacement Capital | D37: =D23 -> 50000 | E37: =D5 -> 10 | G37: =(G34=$E$37)*$D$37 -> 0 | H37: =(H34=$E$37)*$D$37 -> 0 | I37: 0 | J37: 0 | K37: 0 | L37: 0 | M37: 0 | N37: 0 | O37: 0 | P37: 50000 | Q37: 0 | R37: 0 | S37: 0 | T37: 0 | U37: 0 | V37: 0 | W37: 0 | X37: 0 | Y37: 0 | Z37: 0
C38: Cash Flow | F38: =F35-F36-F37 -> -100000 | G38: =G35-G36-G37 -> 14010.25098 | H38: 14010.25098 | I38: 14010.25098 | J38: 14010.25098 | K38: 14010.25098 | L38: 14010.25098 | M38: 14010.25098 | N38: 14010.25098 | O38: 14010.25098 | P38: -35989.74902 | Q38: 14010.25098 | R38: 14010.25098 | S38: 14010.25098 | T38: 14010.25098 | U38: 14010.25098 | V38: 14010.25098 | W38: 14010.25098 | X38: 14010.25098 | Y38: 14010.25098 | Z38: 14010.25098
C39: IRR | D39: =IRR(F38:Z38) -> 0.1

Sheet Replacement Example 2
B3: Inputs
C4: Total Life | D4: 20
C5: Replacement | D5: 10
C7: Initial Cost | D7: 100000
C8: Replacement | D8: 50000
C10: Target IRR | D10: 0.1
C11: Tax Rate | D11: 0.3
C13: PMT for 20 | D13: =PMT(D10,D4,-1) -> 0.1174596248 | E13: =_xlfn.FORMULATEXT(D13) -> =PMT(D10,D4,-1)
C14: PMT for 10 | D14: =PMT(D10,D5,-1) -> 0.1627453949 | E14: =_xlfn.FORMULATEXT(D14) -> =PMT(D10,D5,-1)
C16: PV of Deprecaition 20 | D16: =PV(D10,D4,-1/D4) -> 0.425678186 | E16: =_xlfn.FORMULATEXT(D16) -> =PV(D10,D4,-1/D4)
C17: PV of Deprecaition 10 | D17: =PV(D10,D5,-1/D5) -> 0.6144567106 | E17: =_xlfn.FORMULATEXT(D17) -> =PV(D10,D5,-1/D5)
C19: Tax Shield 20 | D19: =D16*D11 -> 0.1277034558 | E19: =_xlfn.FORMULATEXT(D19) -> =D16*D11
C20: Tax Shield 10 | D20: =D17*D11 -> 0.1843370132 | E20: =_xlfn.FORMULATEXT(D20) -> =D17*D11
C22: Adjusted PMT 20 | D22: =D13/(1-$D$11)*(1-D19) -> 0.1463708925 | E22: =_xlfn.FORMULATEXT(D22) -> =D13/(1-$D$11)*(1-D19)
C23: Adjusted PMT 10 | D23: =D14/(1-$D$11)*(1-D20) -> 0.1896362784 | E23: =_xlfn.FORMULATEXT(D23) -> =D14/(1-$D$11)*(1-D20)
B25: LCOE Option 1
C27: Method 1 - Split | D27: Base | E27: Replacement | F27: Total
C29: Cap Exp | D29: =D7-D8 -> 50000 | E29: =D8 -> 50000 | F29: =E29+D29 -> 100000
C30: Recovery Factor | D30: =D22 -> 0.1463708925 | E30: =D23 -> 0.1896362784
C31: Capital Recovery | D31: =D29*D30 -> 7318.544627 | E31: =E29*E30 -> 9481.81392 | F31: =E31+D31 -> 16800.35855
B33: LCOE Option 2
C34: Replacement | D34: =D8 -> 50000
C35: PV of Replacement using 10 Yr | D35: =(D34/(1+D10)^D5)*(1-D20) -> 15723.66955
C37: Up Front Cost | D37: =D7 -> 100000
C38: Portion with 20 Yr Life | D38: =D37*0.5 -> 50000
C39: After Tax Shield | D39: =D38*(1-D19) -> 43614.82721
C41: Portion with 10 Yr Life | D41: =D37-D38 -> 50000
C42: After Tax Shield | D42: =D41*(1-D20) -> 40783.14934
C44: PV of Replacement | D44: =D35 -> 15723.66955
C45: Total Capital Cost after Tax Shield | D45: =D39+D42+D44 -> 100121.6461
C47: Recovery Factor with Tax | D47: =D13/(1-D11) -> 0.167799464
C48: Total Recovery | D48: =D47*D45 -> 16800.35855
B50: Financial Model
C51: Time Period | G51: 1 | H51: 2 | I51: 3 | J51: 4 | K51: 5 | L51: 6 | M51: 7 | N51: 8 | O51: 9 | P51: 10 | Q51: 11 | R51: 12 | S51: 13 | T51: 14 | U51: 15 | V51: 16 | W51: 17 | X51: 18 | Y51: 19 | Z51: 20
C52: Revenues | D52: =D48 -> 16800.35855 | G52: =$D$52 -> 16800.35855 | H52: =$D$52 -> 16800.35855 | I52: 16800.35855 | J52: 16800.35855 | K52: 16800.35855 | L52: 16800.35855 | M52: 16800.35855 | N52: 16800.35855 | O52: 16800.35855 | P52: 16800.35855 | Q52: 16800.35855 | R52: 16800.35855 | S52: 16800.35855 | T52: 16800.35855 | U52: 16800.35855 | V52: 16800.35855 | W52: 16800.35855 | X52: 16800.35855 | Y52: 16800.35855 | Z52: 16800.35855
C53: Up-Front Capital | D53: =D37 -> 100000 | F53: =D53 -> 100000
C54: Replacement Capital | D54: =D34 -> 50000 | E54: =D5 -> 10 | G54: =(G51=$E$54)*$D$54 -> 0 | H54: =(H51=$E$54)*$D$54 -> 0 | I54: 0 | J54: 0 | K54: 0 | L54: 0 | M54: 0 | N54: 0 | O54: 0 | P54: 50000 | Q54: 0 | R54: 0 | S54: 0 | T54: 0 | U54: 0 | V54: 0 | W54: 0 | X54: 0 | Y54: 0 | Z54: 0
C55: 20 Year Tax Depreciation | D55: =D53-D54 -> 50000 | E55: =D4 -> 20 | G55: =1/$E$55*$D$55 -> 2500 | H55: =1/$E$55*$D$55 -> 2500 | I55: 2500 | J55: 2500 | K55: 2500 | L55: 2500 | M55: 2500 | N55: 2500 | O55: 2500 | P55: 2500 | Q55: 2500 | R55: 2500 | S55: 2500 | T55: 2500 | U55: 2500 | V55: 2500 | W55: 2500 | X55: 2500 | Y55: 2500 | Z55: 2500
C56: 10 Year Tax Depreciation Base | D56: =D55 -> 50000 | E56: =E54 -> 10 | G56: =1/$E$56*$D$56 -> 5000 | H56: =1/$E$56*$D$56 -> 5000 | I56: 5000 | J56: 5000 | K56: 5000 | L56: 5000 | M56: 5000 | N56: 5000 | O56: 5000 | P56: 5000
C57: 10 Year Tax Deprecation Replacement | D57: =D54 -> 50000 | E57: =E56 -> 10 | Q57: =1/$E$57*$D$57 -> 5000 | R57: =1/$E$57*$D$57 -> 5000 | S57: 5000 | T57: 5000 | U57: 5000 | V57: 5000 | W57: 5000 | X57: 5000 | Y57: 5000 | Z57: 5000
C58: Taxable Income | G58: =G52-G55-G56-G57 -> 9300.358547 | H58: =H52-H55-H56-H57 -> 9300.358547 | I58: 9300.358547 | J58: 9300.358547 | K58: 9300.358547 | L58: 9300.358547 | M58: 9300.358547 | N58: 9300.358547 | O58: 9300.358547 | P58: 9300.358547 | Q58: 9300.358547 | R58: =R52-R55-R56-R57 -> 9300.358547 | S58: =S52-S55-S56-S57 -> 9300.358547 | T58: =T52-T55-T56-T57 -> 9300.358547 | U58: =U52-U55-U56-U57 -> 9300.358547 | V58: =V52-V55-V56-V57 -> 9300.358547 | W58: =W52-W55-W56-W57 -> 9300.358547 | X58: =X52-X55-X56-X57 -> 9300.358547 | Y58: =Y52-Y55-Y56-Y57 -> 9300.358547 | Z58: =Z52-Z55-Z56-Z57 -> 9300.358547
C59: Taxes | D59: =D11 -> 0.3 | G59: =$D$59*G58 -> 2790.107564 | H59: =$D$59*H58 -> 2790.107564 | I59: 2790.107564 | J59: 2790.107564 | K59: 2790.107564 | L59: 2790.107564 | M59: 2790.107564 | N59: 2790.107564 | O59: 2790.107564 | P59: 2790.107564 | Q59: 2790.107564 | R59: 2790.107564 | S59: 2790.107564 | T59: 2790.107564 | U59: 2790.107564 | V59: 2790.107564 | W59: 2790.107564 | X59: 2790.107564 | Y59: 2790.107564 | Z59: 2790.107564
C61: Cash Flow | F61: =F52-F53-F54 -> -100000 | G61: =G52-G53-G54-G59 -> 14010.25098 | H61: =H52-H53-H54-H59 -> 14010.25098 | I61: 14010.25098 | J61: 14010.25098 | K61: 14010.25098 | L61: 14010.25098 | M61: 14010.25098 | N61: 14010.25098 | O61: 14010.25098 | P61: -35989.74902 | Q61: 14010.25098 | R61: 14010.25098 | S61: 14010.25098 | T61: 14010.25098 | U61: 14010.25098 | V61: 14010.25098 | W61: 14010.25098 | X61: 14010.25098 | Y61: 14010.25098 | Z61: 14010.25098
C62: IRR | D62: =IRR(F61:Z61) -> 0.1

Sheet Replacement Example 3
B3: Inputs
C4: Total Life | D4: 20
C5: Replacement | D5: 10
C7: Initial Cost | D7: 100000
C8: Replacement | D8: 50000
C10: Inflation Rate | D10: 0.03
C12: Target Nominal IRR | D12: 0.1
C13: Target Real IRR | D13: =(1+D12)/(1+D10)-1 -> 0.06796116505 | F13: =_xlfn.FORMULATEXT(D13) -> =(1+D12)/(1+D10)-1
C15: Tax Rate | D15: 0.3
C17: PMT for 20 Using Real Rate | D17: =PMT(D13,D4,-1) -> 0.09290238202 | F17: =_xlfn.FORMULATEXT(D17) -> =PMT(D13,D4,-1)
C18: PMT for 10 Using Real Rate | D18: =PMT(D13,D5,-1) -> 0.141038631 | F18: =_xlfn.FORMULATEXT(D18) -> =PMT(D13,D5,-1)
C20: PV of Deprecaition 20 Using Nominal | D20: =PV(D12,D4,-1/D4) -> 0.425678186 | F20: =_xlfn.FORMULATEXT(D20) -> =PV(D12,D4,-1/D4)
C21: PV of Deprecaition 10 Using Nominal | D21: =PV(D12,D5,-1/D5) -> 0.6144567106 | F21: =_xlfn.FORMULATEXT(D21) -> =PV(D12,D5,-1/D5)
C23: Tax Shield 20 | D23: =D20*D15 -> 0.1277034558 | F23: =_xlfn.FORMULATEXT(D23) -> =D20*D15
C24: Tax Shield 10 | D24: =D21*D15 -> 0.1843370132 | F24: =_xlfn.FORMULATEXT(D24) -> =D21*D15
C26: Adjusted PMT 20 | D26: =D17/(1-$D$15)*(1-D23) -> 0.1157691811 | F26: =_xlfn.FORMULATEXT(D26) -> =D17/(1-$D$15)*(1-D23)
C27: Adjusted PMT 10 | D27: =D18/(1-$D$15)*(1-D24) -> 0.1643428443 | F27: =_xlfn.FORMULATEXT(D27) -> =D18/(1-$D$15)*(1-D24)
B29: LCOE Option 1
C31: Method 1 - Split | D31: Base | E31: Replacement | F31: Total
C33: Cap Exp | D33: =D7-D8 -> 50000 | E33: =D8 -> 50000 | F33: =E33+D33 -> 100000
C34: Recovery Factor | D34: =D26 -> 0.1157691811 | E34: =D27 -> 0.1643428443
C35: Capital Recovery | D35: =D33*D34 -> 5788.459056 | E35: =E33*E34 -> 8217.142216 | F35: =E35+D35 -> 14005.60127
B37: LCOE Option 2
C38: Replacement | D38: =D8 -> 50000
C40: Up Front Cost | D40: =D7 -> 100000 | F40: =_xlfn.FORMULATEXT(D40) -> =D7
C41: Portion with 20 Yr Life | D41: =D40*0.5 -> 50000 | F41: =_xlfn.FORMULATEXT(D41) -> =D40*0.5
C42: After Tax Shield | D42: =D41*(1-D23) -> 43614.82721 | F42: =_xlfn.FORMULATEXT(D42) -> =D41*(1-D23)
C44: Up-Front Portion with 10 Yr Life | D44: =D40-D41 -> 50000 | F44: =_xlfn.FORMULATEXT(D44) -> =D40-D41
C45: After Tax Shield | D45: =D44*(1-D24) -> 40783.14934 | F45: =_xlfn.FORMULATEXT(D45) -> =D44*(1-D24)
C47: PV of Replacement | D47: =D44/(1+D13)^D5 -> 25906.89708 | F47: =_xlfn.FORMULATEXT(D47) -> =D44/(1+D13)^D5
C48: Tax Shield | D48: =D47*(1-D24) -> 21131.29705 | F48: =_xlfn.FORMULATEXT(D48) -> =D47*(1-D24)
C49: Total Capital Cost after Tax Shield | D49: =D42+D45+D48 -> 105529.2736 | F49: =_xlfn.FORMULATEXT(D49) -> =D42+D45+D48
C51: Recovery Factor with Tax | D51: =D17/(1-D15) -> 0.1327176886 | F51: =_xlfn.FORMULATEXT(D51) -> =D17/(1-D15)
C52: Total Recovery | D52: =D51*D49 -> 14005.60127 | F52: =_xlfn.FORMULATEXT(D52) -> =D51*D49
B54: Financial Model
C55: Time Period | G55: 1 | H55: 2 | I55: 3 | J55: 4 | K55: 5 | L55: 6 | M55: 7 | N55: 8 | O55: 9 | P55: 10 | Q55: 11 | R55: 12 | S55: 13 | T55: 14 | U55: 15 | V55: 16 | W55: 17 | X55: 18 | Y55: 19 | Z55: 20
C56: Inflation Index | D56: =D10 -> 0.03 | F56: 1 | G56: =F56*(1+$D$56) -> 1.03 | H56: =G56*(1+$D$56) -> 1.0609 | I56: 1.092727 | J56: 1.12550881 | K56: 1.159274074 | L56: 1.194052297 | M56: 1.229873865 | N56: 1.266770081 | O56: 1.304773184 | P56: 1.343916379 | Q56: 1.384233871 | R56: 1.425760887 | S56: 1.468533713 | T56: 1.512589725 | U56: 1.557967417 | V56: 1.604706439 | W56: 1.652847632 | X56: 1.702433061 | Y56: 1.753506053 | Z56: 1.806111235
C57: Revenues | D57: =F35 -> 14005.60127 | G57: =$D$57*G56 -> 14425.76931 | H57: =$D$57*H56 -> 14858.54239 | I57: 15304.29866 | J57: 15763.42762 | K57: 16236.33045 | L57: 16723.42036 | M57: 17225.12297 | N57: 17741.87666 | O57: 18274.13296 | P57: 18822.35695 | Q57: 19387.02766 | R57: 19968.63849 | S57: 20567.69764 | T57: 21184.72857 | U57: 21820.27043 | V57: 22474.87854 | W57: 23149.1249 | X57: 23843.59865 | Y57: 24558.90661 | Z57: 25295.67381
C58: Up-Front Capital | D58: =D40 -> 100000 | F58: =D58 -> 100000
C59: Replacement Capital | D59: =D38 -> 50000 | E59: =D5 -> 10 | G59: =(G55=$E$59)*$D$59*G56 -> 0 | H59: =(H55=$E$59)*$D$59*H56 -> 0 | I59: 0 | J59: 0 | K59: 0 | L59: 0 | M59: 0 | N59: 0 | O59: 0 | P59: 67195.81897 | Q59: 0 | R59: 0 | S59: 0 | T59: 0 | U59: 0 | V59: 0 | W59: 0 | X59: 0 | Y59: 0 | Z59: 0
C60: 20 Year Tax Depreciation | D60: =D58-D59 -> 50000 | E60: =D4 -> 20 | G60: =1/$E$60*$D$60 -> 2500 | H60: =1/$E$60*$D$60 -> 2500 | I60: 2500 | J60: 2500 | K60: 2500 | L60: 2500 | M60: 2500 | N60: 2500 | O60: 2500 | P60: 2500 | Q60: 2500 | R60: 2500 | S60: 2500 | T60: 2500 | U60: 2500 | V60: 2500 | W60: 2500 | X60: 2500 | Y60: 2500 | Z60: 2500
C61: 10 Year Tax Depreciation Base | D61: =D60 -> 50000 | E61: =E59 -> 10 | G61: =1/$E$61*$D$61 -> 5000 | H61: =1/$E$61*$D$61 -> 5000 | I61: 5000 | J61: 5000 | K61: 5000 | L61: 5000 | M61: 5000 | N61: 5000 | O61: 5000 | P61: 5000
C62: 10 Year Tax Deprecation Replacement | D62: =P59 -> 67195.81897 | E62: =E61 -> 10 | Q62: =1/$E$62*$D$62 -> 6719.581897 | R62: =1/$E$62*$D$62 -> 6719.581897 | S62: 6719.581897 | T62: 6719.581897 | U62: 6719.581897 | V62: 6719.581897 | W62: 6719.581897 | X62: 6719.581897 | Y62: 6719.581897 | Z62: 6719.581897
C63: Taxable Income | G63: =G57-G60-G61-G62 -> 6925.76931 | H63: =H57-H60-H61-H62 -> 7358.542389 | I63: 7804.298661 | J63: 8263.427621 | K63: 8736.330449 | L63: 9223.420363 | M63: 9725.122974 | N63: 10241.87666 | O63: 10774.13296 | P63: 11322.35695 | Q63: 10167.44576 | R63: 10749.05659 | S63: 11348.11575 | T63: 11965.14668 | U63: 12600.68853 | V63: 13255.29665 | W63: 13929.543 | X63: 14624.01675 | Y63: 15339.32471 | Z63: 16076.09191
C64: Taxes | D64: =D15 -> 0.3 | G64: =$D$64*G63 -> 2077.730793 | H64: =$D$64*H63 -> 2207.562717 | I64: 2341.289598 | J64: 2479.028286 | K64: 2620.899135 | L64: 2767.026109 | M64: 2917.536892 | N64: 3072.562999 | O64: 3232.239889 | P64: 3396.707086 | Q64: 3050.233729 | R64: 3224.716978 | S64: 3404.434724 | T64: 3589.544003 | U64: 3780.20656 | V64: 3976.588994 | W64: 4178.862901 | X64: 4387.205025 | Y64: 4601.797413 | Z64: 4822.827573
C66: Cash Flow | F66: =F57-F58-F59 -> -100000 | G66: =G57-G58-G59-G64 -> 12348.03852 | H66: =H57-H58-H59-H64 -> 12650.97967 | I66: 12963.00906 | J66: 13284.39933 | K66: 13615.43131 | L66: 13956.39425 | M66: 14307.58608 | N66: 14669.31366 | O66: 15041.89307 | P66: -51770.1691 | Q66: 16336.79393 | R66: 16743.92151 | S66: 17163.26292 | T66: 17595.18457 | U66: 18040.06387 | V66: 18498.28955 | W66: 18970.262 | X66: 19456.39362 | Y66: 19957.10919 | Z66: 20472.84623
C67: IRR | D67: =IRR(F66:Z66) -> 0.1
C68: Target IRR | D68: =D12 -> 0.1 | E68: =NPV(D68,F66:Z66) -> -8.970925013e-11

Sheet Replacement Example 4
B3: Inputs
C4: Total Life | D4: 20
C5: Replacement | D5: 12 | F5: =D94 -> 0.03
C7: Initial Cost | D7: 100000
C8: Replacement | D8: 50000
C10: Inflation Rate | D10: 0.05
C12: Target Nominal IRR | D12: 0.03
C13: Target Real IRR | D13: =(1+D12)/(1+D10)-1 -> -0.01904761905 | F13: =_xlfn.FORMULATEXT(D13) -> =(1+D12)/(1+D10)-1
C15: Tax Rate | D15: 0
C17: ="PMT Using Real Rate "&D4 -> PMT Using Real Rate 20 | D17: =PMT(D13,D4,-1) -> 0.0406074931 | F17: =_xlfn.FORMULATEXT(D17) -> =PMT(D13,D4,-1)
C18: ="PMT Using Real Rate "&D5 -> PMT Using Real Rate 12 | D18: =PMT(D13,D5,-1) -> 0.07337931612 | F18: =_xlfn.FORMULATEXT(D18) -> =PMT(D13,D5,-1)
C20: ="PV of Deprecaition Using Nominal "&D4 -> PV of Deprecaition Using Nominal 20 | D20: =PV(D12,D4,-1/D4) -> 0.743873743 | F20: =_xlfn.FORMULATEXT(D20) -> =PV(D12,D4,-1/D4)
C21: ="PV of Deprecaition Using Nominal "&D5 -> PV of Deprecaition Using Nominal 12 | D21: =PV(D12,D5,-1/D5) -> 0.8295003328 | F21: =_xlfn.FORMULATEXT(D21) -> =PV(D12,D5,-1/D5)
C23: ="Tax Shield "&D4 -> Tax Shield 20 | D23: =D20*D15 -> 0 | F23: =_xlfn.FORMULATEXT(D23) -> =D20*D15
C24: ="Tax Shield "&D5 -> Tax Shield 12 | D24: =D21*D15 -> 0 | F24: =_xlfn.FORMULATEXT(D24) -> =D21*D15
C26: ="Adjusted PMT "&D4 -> Adjusted PMT 20 | D26: =D17/(1-$D$15)*(1-D23) -> 0.0406074931 | F26: =_xlfn.FORMULATEXT(D26) -> =D17/(1-$D$15)*(1-D23)
C27: ="Adjusted PMT "&D5 -> Adjusted PMT 12 | D27: =D18/(1-$D$15)*(1-D24) -> 0.07337931612 | F27: =_xlfn.FORMULATEXT(D27) -> =D18/(1-$D$15)*(1-D24)
B29: LCOE Option 1
C31: Method 1 - Split | D31: Base | E31: Replacement | F31: Total
C33: Cap Exp | D33: =D7-D8 -> 50000 | E33: =D8 -> 50000 | F33: =E33+D33 -> 100000
C34: Recovery Factor | D34: =D26 -> 0.0406074931 | E34: =D27 -> 0.07337931612
C35: Capital Recovery | D35: =D33*D34 -> 2030.374655 | E35: =E33*E34 -> 3668.965806 | F35: =E35+D35 -> 5699.340461
B37: LCOE Option 2
C38: Replacement | D38: =D8 -> 50000 | F38: =_xlfn.FORMULATEXT(D38) -> =D8
C40: Up Front Cost | D40: =D7 -> 100000 | F40: =_xlfn.FORMULATEXT(D40) -> =D7
C41: Portion with 20 Yr Life | D41: =D40*0.5 -> 50000 | F41: =_xlfn.FORMULATEXT(D41) -> =D40*0.5
C42: After Tax Shield | D42: =D41*(1-D23) -> 50000 | F42: =_xlfn.FORMULATEXT(D42) -> =D41*(1-D23)
C44: Up-Front Portion with 10 Yr Life | D44: =D40-D41 -> 50000 | F44: =_xlfn.FORMULATEXT(D44) -> =D40-D41
C45: After Tax Shield | D45: =D44*(1-D24) -> 50000 | F45: =_xlfn.FORMULATEXT(D45) -> =D44*(1-D24)
C47: PV of Replacement | D47: =D44/(1+D13)^D5 -> 62978.87474 | F47: =_xlfn.FORMULATEXT(D47) -> =D44/(1+D13)^D5
C48: PV of Depreciation on Replacement | D48: =D24 -> 0
C49: Tax Shield | D49: =D47*(1-D48) -> 62978.87474 | F49: =_xlfn.FORMULATEXT(D49) -> =D47*(1-D48)
C51: Replacement Period | D51: =D5 -> 12 | F51: =_xlfn.FORMULATEXT(D51) -> =D5
C52: Life of Replaced Plant | D52: =MAX(D4-D51,0) -> 8 | F52: =_xlfn.FORMULATEXT(D52) -> =MAX(D4-D51,0)
C53: Life of Residual | D53: =D51-D52 -> 4 | F53: =_xlfn.FORMULATEXT(D53) -> =D51-D52
C55: Real Rate | D55: =D13 -> -0.01904761905 | F55: =_xlfn.FORMULATEXT(D55) -> =D13
C56: Total PV of Replaced Cap Exp | D56: =PV(D55,D51,-1) -> 13.62781848 | F56: =_xlfn.FORMULATEXT(D56) -> =PV(D55,D51,-1)
C57: Total PV of Residual | D57: =PV(D55,D53,-1) -> 4.197981889 | F57: =_xlfn.FORMULATEXT(D57) -> =PV(D55,D53,-1)
C58: Residual Percent | D58: =D57/D56 -> 0.3080450401 | F58: =_xlfn.FORMULATEXT(D58) -> =D57/D56
C60: PV of Residual | D60: =D58*D44/(1+D55)^D4 -> 22626.93411 | F60: =_xlfn.FORMULATEXT(D60) -> =D58*D44/(1+D55)^D4
C61: Value of Residual without Inflation | D61: =D58*D44 -> 15402.252 | F61: =_xlfn.FORMULATEXT(D61) -> =D58*D44
C62: Tax Factor for Residual | D62: =D24 -> 0 | F62: =_xlfn.FORMULATEXT(D62) -> =D24 | H62: =E95 -> -2.119210956e-11 | I62: =D24 -> 0 | J62: =(1+D12) -> 1.03 | K62: =J62^D52 -> 1.266770081 | L62: =I62/K62 -> 0
C63: After-tax Residual | D63: =D60*(1-D62) -> 22626.93411 | F63: =_xlfn.FORMULATEXT(D63) -> =D60*(1-D62)
C67: Total Capital Cost after Tax Shield | D67: =D42+D45+D49-D63 -> 140351.9406 | F67: =_xlfn.FORMULATEXT(D67) -> =D42+D45+D49-D63
C69: Recovery Factor with Tax | D69: =D17/(1-D15) -> 0.0406074931 | F69: =_xlfn.FORMULATEXT(D69) -> =D17/(1-D15)
C70: Total Recovery | D70: =D69*D67 -> 5699.340461 | F70: =_xlfn.FORMULATEXT(D70) -> =D69*D67
B72: Financial Model
C74: Residual for Computing Terminal Value
C77: Time Period | G77: 1 | H77: 2 | I77: 3 | J77: 4 | K77: 5 | L77: 6 | M77: 7 | N77: 8 | O77: 9 | P77: 10 | Q77: 11 | R77: 12 | S77: 13 | T77: 14 | U77: 15 | V77: 16 | W77: 17 | X77: 18 | Y77: 19 | Z77: 20
C78: First Time Period | E78: =D5 -> 12 | G78: =G77<=$E$78 -> TRUE | H78: =H77<=$E$78 -> TRUE | I78: TRUE | J78: TRUE | K78: TRUE | L78: TRUE | M78: TRUE | N78: TRUE | O78: TRUE | P78: TRUE | Q78: TRUE | R78: TRUE | S78: FALSE | T78: FALSE | U78: FALSE | V78: FALSE | W78: FALSE | X78: FALSE | Y78: FALSE | Z78: FALSE
C79: Second Time Period | E79: =E78 -> 12 | G79: =G77>$E$79 -> FALSE | H79: =H77>$E$79 -> FALSE | I79: FALSE | J79: FALSE | K79: FALSE | L79: FALSE | M79: FALSE | N79: FALSE | O79: FALSE | P79: FALSE | Q79: FALSE | R79: FALSE | S79: TRUE | T79: TRUE | U79: TRUE | V79: TRUE | W79: TRUE | X79: TRUE | Y79: TRUE | Z79: TRUE
C81: Inflation Index | D81: =D10 -> 0.05 | F81: 1 | G81: =F81*(1+$D$81) -> 1.05 | H81: =G81*(1+$D$81) -> 1.1025 | I81: 1.157625 | J81: 1.21550625 | K81: 1.276281563 | L81: 1.340095641 | M81: 1.407100423 | N81: 1.477455444 | O81: 1.551328216 | P81: 1.628894627 | Q81: 1.710339358 | R81: 1.795856326 | S81: 1.885649142 | T81: 1.979931599 | U81: 2.078928179 | V81: 2.182874588 | W81: 2.292018318 | X81: 2.406619234 | Y81: 2.526950195 | Z81: 2.653297705
C82: Revenues | D82: =F35 -> 5699.340461 | G82: =$D$82*G81 -> 5984.307484 | H82: =$D$82*H81 -> 6283.522858 | I82: 6597.699001 | J82: 6927.583951 | K82: 7273.963149 | L82: 7637.661306 | M82: 8019.544372 | N82: 8420.52159 | O82: 8841.54767 | P82: 9283.625053 | Q82: 9747.806306 | R82: 10235.19662 | S82: 10746.95645 | T82: 11284.30427 | U82: 11848.51949 | V82: 12440.94546 | W82: 13062.99274 | X82: 13716.14237 | Y82: 14401.94949 | Z82: 15122.04697
C83: Up-Front Capital | D83: =D40 -> 100000 | F83: =D83 -> 100000
C84: Replacement Capital | D84: =D38 -> 50000 | E84: =D5 -> 12 | G84: =(G77=$E$84)*$D$84*G81 -> 0 | H84: 0 | I84: 0 | J84: 0 | K84: 0 | L84: 0 | M84: 0 | N84: 0 | O84: 0 | P84: 0 | Q84: 0 | R84: 89792.8163 | S84: 0 | T84: 0 | U84: 0 | V84: 0 | W84: 0 | X84: 0 | Y84: 0 | Z84: 0
C85: Less: Terminal | D85: =D61 -> 15402.252 | E85: =D4 -> 20 | G85: =-$D$85*(G77=$E$85)*G81 -> 0 | H85: 0 | I85: 0 | J85: 0 | K85: 0 | L85: 0 | M85: 0 | N85: 0 | O85: 0 | P85: 0 | Q85: 0 | R85: 0 | S85: 0 | T85: 0 | U85: 0 | V85: 0 | W85: 0 | X85: 0 | Y85: 0 | Z85: -40866.7599
C87: 20 Year Tax Depreciation | D87: =D83-D84 -> 50000 | E87: =D4 -> 20 | G87: =1/$E$87*$D$87 -> 2500 | H87: =1/$E$87*$D$87 -> 2500 | I87: 2500 | J87: 2500 | K87: 2500 | L87: 2500 | M87: 2500 | N87: 2500 | O87: 2500 | P87: 2500 | Q87: 2500 | R87: 2500 | S87: 2500 | T87: 2500 | U87: 2500 | V87: 2500 | W87: 2500 | X87: 2500 | Y87: 2500 | Z87: 2500
C88: =D5&" Year Tax Depreciation Base" -> 12 Year Tax Depreciation Base | D88: =D87 -> 50000 | E88: =E84 -> 12 | G88: =$D$88/$E$88*G78 -> 4166.666667 | H88: =$D$88/$E$88*H78 -> 4166.666667 | I88: 4166.666667 | J88: 4166.666667 | K88: 4166.666667 | L88: 4166.666667 | M88: 4166.666667 | N88: 4166.666667 | O88: 4166.666667 | P88: 4166.666667 | Q88: 4166.666667 | R88: 4166.666667 | S88: 0 | T88: 0 | U88: 0 | V88: 0 | W88: 0 | X88: 0 | Y88: 0 | Z88: 0
C89: =D5&" Year Tax Deprecation Replacement" -> 12 Year Tax Deprecation Replacement | D89: =SUM(G84:Z84) -> 89792.8163 | E89: =E88 -> 12 | G89: =$D$89/$E$89*G79 -> 0 | H89: =$D$89/$E$89*H79 -> 0 | I89: 0 | J89: 0 | K89: 0 | L89: 0 | M89: 0 | N89: 0 | O89: 0 | P89: 0 | Q89: 0 | R89: 0 | S89: 7482.734692 | T89: 7482.734692 | U89: 7482.734692 | V89: 7482.734692 | W89: 7482.734692 | X89: 7482.734692 | Y89: 7482.734692 | Z89: 7482.734692
C90: Taxable Income | G90: =G82-G87-G88-G89 -> -682.3591826 | H90: =H82-H87-H88-H89 -> -383.1438084 | I90: -68.96766544 | J90: 260.9172846 | K90: 607.2964822 | L90: 970.9946396 | M90: 1352.877705 | N90: 1753.854924 | O90: 2174.881003 | P90: 2616.958387 | Q90: 3081.139639 | R90: 3568.529954 | S90: 764.2217604 | T90: 1301.569583 | U90: 1865.784797 | V90: 2458.210771 | W90: 3080.258044 | X90: 3733.407681 | Y90: 4419.2148 | Z90: 5139.312274
C91: Taxes | D91: =D15 -> 0 | G91: =$D$91*G90 -> 0 | H91: =$D$91*H90 -> 0 | I91: 0 | J91: 0 | K91: 0 | L91: 0 | M91: 0 | N91: 0 | O91: 0 | P91: 0 | Q91: 0 | R91: 0 | S91: 0 | T91: 0 | U91: 0 | V91: 0 | W91: 0 | X91: 0 | Y91: 0 | Z91: 0
C93: Cash Flow | F93: =F82-F83-F84-F85 -> -100000 | G93: =G82-G83-G84-G85-G91 -> 5984.307484 | H93: =H82-H83-H84-H85-H91 -> 6283.522858 | I93: 6597.699001 | J93: 6927.583951 | K93: 7273.963149 | L93: 7637.661306 | M93: 8019.544372 | N93: 8420.52159 | O93: 8841.54767 | P93: 9283.625053 | Q93: 9747.806306 | R93: -79557.61968 | S93: 10746.95645 | T93: 11284.30427 | U93: 11848.51949 | V93: 12440.94546 | W93: 13062.99274 | X93: 13716.14237 | Y93: 14401.94949 | Z93: 55988.80686
C94: IRR | D94: =IRR(F93:Z93,0.1) -> 0.03
C95: Target IRR | D95: =D12 -> 0.03 | E95: =NPV(D95,F93:Z93) -> -2.119210956e-11
Z96: =D94 -> 0.03
D97: =D85 -> 15402.252
D98: =D61 -> 15402.252 | F98: x = (1-c) * y
D99: =D98/D97-1 -> 0 | F99: x/y = 1-c
F100: xy-1

Sheet Degradation Example 1
B3: Inputs
C4: kW | E4: 100
C5: Cost | E5: =E4*1000 -> 100000
C7: Efficiency | D7: kWh/kg | E7: 55
C8: Degradation | D8: % | E8: 0.01
C9: Electricity Cost | D9: USD/MWH | E9: 30
C10: Load Factor | D10: % | E10: 0.5
C11: Target IRR | D11: % | E11: 0.1
C13: Life | D13: Years | E13: 20
C15: LCOH - No Degradation
C16: Capital Cost | E16: =PMT(E11,E13,-1) -> 0.1174596248 | G16: =_xlfn.FORMULATEXT(E16) -> =PMT(E11,E13,-1)
C17: Recovery | E17: =E16*E5 -> 11745.96248 | G17: =_xlfn.FORMULATEXT(E17) -> =E16*E5
C19: Electricity without Degradation | E19: =E4*E10*8760*E9/1000 -> 13140 | G19: =_xlfn.FORMULATEXT(E19) -> =E4*E10*8760*E9/1000
C20: Total Cost Including Capital Cost | E20: =E17+E19 -> 24885.96248 | G20: =_xlfn.FORMULATEXT(E20) -> =E17+E19
C21: Producion of H2 | E21: =E4/E7*E10*8760 -> 7963.636364 | G21: =_xlfn.FORMULATEXT(E21) -> =E4/E7*E10*8760
C22: LCOH | E22: =E20/E21 -> 3.124949626 | G22: =_xlfn.FORMULATEXT(E22) -> =E20/E21
B24: LCOH with Degradation Factor
C25: Target IRR adjusted for Degradation | E25: =(1+E11)/(1+E8)-1 -> 0.08910891089 | G25: =_xlfn.FORMULATEXT(E25) -> =(1+E11)/(1+E8)-1
C26: O&M Adjustment | E26: =PV(E25,E13,-1)/PV(E11,E13,-1) -> 1.079079113 | G26: =PV(E25,E13,-1)/PV(E11,E13,-1)
C27: Adjusted Electricity Cost | E27: =E26*E19 -> 14179.09954 | G27: =E26*E19
C28: Capital Recovery | E28: =E17 -> 11745.96248 | G28: =E17
C29: Total Cost | E29: =E27+E28 -> 25925.06202 | G29: =E27+E28
C30: Production | D30: kg | E30: =E21 -> 7963.636364 | G30: =E21
C31: LCOH | D31: USD/kg | E31: =E29/E30 -> 3.255430163 | G31: =E29/E30
B34: Financial Model Proof
C35: Period | G35: 0 | H35: 1 | I35: 2 | J35: 3 | K35: 4 | L35: 5 | M35: 6 | N35: 7 | O35: 8 | P35: 9 | Q35: 10 | R35: 11 | S35: 12 | T35: 13 | U35: 14 | V35: 15 | W35: 16 | X35: 17 | Y35: 18 | Z35: 19 | AA35: 20
C36: kW | D36: kW | E36: =E4 -> 100 | H36: =$E$36 -> 100 | I36: =$E$36 -> 100 | J36: 100 | K36: 100 | L36: 100 | M36: 100 | N36: 100 | O36: 100 | P36: 100 | Q36: 100 | R36: 100 | S36: 100 | T36: 100 | U36: 100 | V36: 100 | W36: 100 | X36: 100 | Y36: 100 | Z36: 100 | AA36: 100
C37: Production of H2 | D37: H2/yr | E37: =E7 -> 55 | F37: =E10 -> 0.5 | H37: =H36/$E$37*8760*$F$37 -> 7963.636364 | I37: =I36/$E$37*8760*$F$37 -> 7963.636364 | J37: 7963.636364 | K37: 7963.636364 | L37: 7963.636364 | M37: 7963.636364 | N37: 7963.636364 | O37: 7963.636364 | P37: 7963.636364 | Q37: 7963.636364 | R37: 7963.636364 | S37: 7963.636364 | T37: 7963.636364 | U37: 7963.636364 | V37: 7963.636364 | W37: 7963.636364 | X37: 7963.636364 | Y37: 7963.636364 | Z37: 7963.636364 | AA37: 7963.636364
C38: Electricity before Degradation | D38: kWh/yr | E38: =E37 -> 55 | H38: =H37*$E$38 -> 438000 | I38: =I37*$E$38 -> 438000 | J38: 438000 | K38: 438000 | L38: 438000 | M38: 438000 | N38: 438000 | O38: 438000 | P38: 438000 | Q38: 438000 | R38: 438000 | S38: 438000 | T38: 438000 | U38: 438000 | V38: 438000 | W38: 438000 | X38: 438000 | Y38: 438000 | Z38: 438000 | AA38: 438000
C39: Degradation Factor | D39: Factor | E39: =E8 -> 0.01 | G39: 1 | H39: =G39*(1+$E$39) -> 1.01 | I39: =H39*(1+$E$39) -> 1.0201 | J39: 1.030301 | K39: 1.04060401 | L39: 1.05101005 | M39: 1.061520151 | N39: 1.072135352 | O39: 1.082856706 | P39: 1.093685273 | Q39: 1.104622125 | R39: 1.115668347 | S39: 1.12682503 | T39: 1.13809328 | U39: 1.149474213 | V39: 1.160968955 | W39: 1.172578645 | X39: 1.184304431 | Y39: 1.196147476 | Z39: 1.20810895 | AA39: 1.22019004
C40: Electricty after Degradation | D40: MWH/yr | H40: =H38*H39/1000 -> 442.38 | I40: =I38*I39/1000 -> 446.8038 | J40: 451.271838 | K40: 455.7845564 | L40: 460.3424019 | M40: 464.945826 | N40: 469.5952842 | O40: 474.2912371 | P40: 479.0341494 | Q40: 483.8244909 | R40: 488.6627358 | S40: 493.5493632 | T40: 498.4848568 | U40: 503.4697054 | V40: 508.5044025 | W40: 513.5894465 | X40: 518.7253409 | Y40: 523.9125944 | Z40: 529.1517203 | AA40: 534.4432375
C42: Revenues | D42: USD | E42: =E31 -> 3.255430163 | H42: =H37*$E$42 -> 25925.06202 | I42: =I37*$E$42 -> 25925.06202 | J42: 25925.06202 | K42: 25925.06202 | L42: 25925.06202 | M42: 25925.06202 | N42: 25925.06202 | O42: 25925.06202 | P42: 25925.06202 | Q42: 25925.06202 | R42: 25925.06202 | S42: 25925.06202 | T42: 25925.06202 | U42: 25925.06202 | V42: 25925.06202 | W42: 25925.06202 | X42: 25925.06202 | Y42: 25925.06202 | Z42: 25925.06202 | AA42: 25925.06202
C43: Electricity Cost | D43: USD | E43: =E9 -> 30 | H43: =H40*$E$43 -> 13271.4 | I43: 13404.114 | J43: 13538.15514 | K43: 13673.53669 | L43: 13810.27206 | M43: 13948.37478 | N43: 14087.85853 | O43: 14228.73711 | P43: 14371.02448 | Q43: 14514.73473 | R43: 14659.88208 | S43: 14806.4809 | T43: 14954.5457 | U43: 15104.09116 | V43: 15255.13207 | W43: 15407.68339 | X43: 15561.76023 | Y43: 15717.37783 | Z43: 15874.55161 | AA43: 16033.29712
C44: EBITDA | D44: USD | H44: =H42-H43 -> 12653.66202 | I44: =I42-I43 -> 12520.94802 | J44: 12386.90688 | K44: 12251.52533 | L44: 12114.78996 | M44: 11976.68724 | N44: 11837.2035 | O44: 11696.32491 | P44: 11554.03754 | Q44: 11410.32729 | R44: 11265.17995 | S44: 11118.58113 | T44: 10970.51632 | U44: 10820.97086 | V44: 10669.92995 | W44: 10517.37863 | X44: 10363.30179 | Y44: 10207.68419 | Z44: 10050.51041 | AA44: 9891.764897
C45: Cap Exp | G45: =E5 -> 100000
C46: Cash Flow | G46: =G44-G45 -> -100000 | H46: =H44-H45 -> 12653.66202 | I46: 12520.94802 | J46: 12386.90688 | K46: 12251.52533 | L46: 12114.78996 | M46: 11976.68724 | N46: 11837.2035 | O46: 11696.32491 | P46: 11554.03754 | Q46: 11410.32729 | R46: 11265.17995 | S46: 11118.58113 | T46: 10970.51632 | U46: 10820.97086 | V46: 10669.92995 | W46: 10517.37863 | X46: 10363.30179 | Y46: 10207.68419 | Z46: 10050.51041 | AA46: 9891.764897
C48: IRR | E48: =IRR(G46:AA46) -> 0.1

Sheet Degradation Example 2
B3: Inputs
C4: Capacity | D4: kW | E4: 100
C5: Cost | D5: USD | E5: =E4*1000 -> 100000
C7: Efficiency | D7: kWh/kg | E7: 55
C8: Degradation | D8: % | E8: 0.02
C9: Electricity Cost | D9: USD/MWH | E9: 35
C10: Load Factor | D10: % | E10: 0.5
C11: Target IRR | D11: % | E11: 0.1
C13: Life | D13: Years | E13: 10
C15: LCOH - No Degradation
C16: Capital Cost | D16: % | E16: =PMT(E11,E13,-1) -> 0.1627453949 | G16: =_xlfn.FORMULATEXT(E16) -> =PMT(E11,E13,-1)
C17: Recovery | D17: USD | E17: =E16*E5 -> 16274.53949 | G17: =_xlfn.FORMULATEXT(E17) -> =E16*E5
C19: Electricity without Degradation | D19: USD | E19: =E4*E10*8760*E9/1000 -> 15330 | G19: =_xlfn.FORMULATEXT(E19) -> =E4*E10*8760*E9/1000
C20: Total Cost Including Capital Cost | D20: USD | E20: =E17+E19 -> 31604.53949 | G20: =_xlfn.FORMULATEXT(E20) -> =E17+E19
C21: Producion of H2 | D21: USD | E21: =E4/E7*E10*8760 -> 7963.636364 | G21: =_xlfn.FORMULATEXT(E21) -> =E4/E7*E10*8760
C22: LCOH | D22: USD/kg | E22: =E20/E21 -> 3.968606557 | G22: =_xlfn.FORMULATEXT(E22) -> =E20/E21
B24: LCOH with Degradation Factor
C25: Target IRR adjusted for Degradation | D25: % | E25: =(1+E11)/(1+E8)-1 -> 0.07843137255 | G25: =_xlfn.FORMULATEXT(E25) -> =(1+E11)/(1+E8)-1
C26: O&M Adjustment | D26: Factor | E26: =PV(E25,E13,-1)/PV(E11,E13,-1) -> 1.099803635 | G26: =PV(E25,E13,-1)/PV(E11,E13,-1)
C27: Adjusted Electricity Cost | D27: USD | E27: =E26*E19 -> 16859.98973 | G27: =E26*E19
C28: Capital Recovery | D28: USD | E28: =E17 -> 16274.53949 | G28: =E17
C29: Total Cost | D29: USD | E29: =E27+E28 -> 33134.52922 | G29: =E27+E28
C30: Production | D30: kg | E30: =E21 -> 7963.636364 | G30: =E21
C31: LCOH | D31: USD/kg | E31: =E29/E30 -> 4.160728554 | G31: =E29/E30
B34: Financial Model Proof
C35: Period | G35: 0 | H35: 1 | I35: 2 | J35: 3 | K35: 4 | L35: 5 | M35: 6 | N35: 7 | O35: 8 | P35: 9 | Q35: 10 | R35: 11 | S35: 12 | T35: 13 | U35: 14 | V35: 15 | W35: 16 | X35: 17 | Y35: 18 | Z35: 19 | AA35: 20
C36: kW | D36: kW | E36: =E4 -> 100 | H36: =$E$36 -> 100 | I36: =$E$36 -> 100 | J36: 100 | K36: 100 | L36: 100 | M36: 100 | N36: 100 | O36: 100 | P36: 100 | Q36: 100 | R36: 100 | S36: 100 | T36: 100 | U36: 100 | V36: 100 | W36: 100 | X36: 100 | Y36: 100 | Z36: 100 | AA36: 100
C37: Production of H2 | D37: H2/yr | E37: =E7 -> 55 | F37: =E10 -> 0.5 | H37: =H36/$E$37*8760*$F$37 -> 7963.636364 | I37: =I36/$E$37*8760*$F$37 -> 7963.636364 | J37: 7963.636364 | K37: 7963.636364 | L37: 7963.636364 | M37: 7963.636364 | N37: 7963.636364 | O37: 7963.636364 | P37: 7963.636364 | Q37: 7963.636364 | R37: 7963.636364 | S37: 7963.636364 | T37: 7963.636364 | U37: 7963.636364 | V37: 7963.636364 | W37: 7963.636364 | X37: 7963.636364 | Y37: 7963.636364 | Z37: 7963.636364 | AA37: 7963.636364
C38: Electricity before Degradation | D38: kWh/yr | E38: =E37 -> 55 | H38: =H37*$E$38 -> 438000 | I38: =I37*$E$38 -> 438000 | J38: 438000 | K38: 438000 | L38: 438000 | M38: 438000 | N38: 438000 | O38: 438000 | P38: 438000 | Q38: 438000 | R38: 438000 | S38: 438000 | T38: 438000 | U38: 438000 | V38: 438000 | W38: 438000 | X38: 438000 | Y38: 438000 | Z38: 438000 | AA38: 438000
C39: Degradation Factor | D39: Factor | E39: =E8 -> 0.02 | G39: 1 | H39: =G39*(1+$E$39) -> 1.02 | I39: =H39*(1+$E$39) -> 1.0404 | J39: 1.061208 | K39: 1.08243216 | L39: 1.104080803 | M39: 1.126162419 | N39: 1.148685668 | O39: 1.171659381 | P39: 1.195092569 | Q39: 1.21899442 | R39: =H39 -> 1.02 | S39: 1.0404 | T39: 1.061208 | U39: 1.08243216 | V39: 1.104080803 | W39: 1.126162419 | X39: 1.148685668 | Y39: 1.171659381 | Z39: 1.195092569 | AA39: 1.21899442
C40: Electricty after Degradation | D40: MWH/yr | H40: =H38*H39/1000 -> 446.76 | I40: =I38*I39/1000 -> 455.6952 | J40: 464.809104 | K40: 474.1052861 | L40: 483.5873918 | M40: 493.2591396 | N40: 503.1243224 | O40: 513.1868089 | P40: 523.4505451 | Q40: 533.919556 | R40: =R38*R39/1000 -> 446.76 | S40: =S38*S39/1000 -> 455.6952 | T40: =T38*T39/1000 -> 464.809104 | U40: =U38*U39/1000 -> 474.1052861 | V40: =V38*V39/1000 -> 483.5873918 | W40: =W38*W39/1000 -> 493.2591396 | X40: =X38*X39/1000 -> 503.1243224 | Y40: =Y38*Y39/1000 -> 513.1868089 | Z40: =Z38*Z39/1000 -> 523.4505451 | AA40: =AA38*AA39/1000 -> 533.919556
C42: Revenues | D42: USD | E42: =E31 -> 4.160728554 | H42: =H37*$E$42 -> 33134.52922 | I42: =I37*$E$42 -> 33134.52922 | J42: 33134.52922 | K42: 33134.52922 | L42: 33134.52922 | M42: 33134.52922 | N42: 33134.52922 | O42: 33134.52922 | P42: 33134.52922 | Q42: 33134.52922 | R42: 33134.52922 | S42: 33134.52922 | T42: 33134.52922 | U42: 33134.52922 | V42: 33134.52922 | W42: 33134.52922 | X42: 33134.52922 | Y42: 33134.52922 | Z42: 33134.52922 | AA42: 33134.52922
C43: Electricity Cost | D43: USD | E43: =E9 -> 35 | H43: =H40*$E$43 -> 15636.6 | I43: 15949.332 | J43: 16268.31864 | K43: 16593.68501 | L43: 16925.55871 | M43: 17264.06989 | N43: 17609.35129 | O43: 17961.53831 | P43: 18320.76908 | Q43: 18687.18446 | R43: 15636.6 | S43: 15949.332 | T43: 16268.31864 | U43: 16593.68501 | V43: 16925.55871 | W43: 17264.06989 | X43: 17609.35129 | Y43: 17961.53831 | Z43: 18320.76908 | AA43: 18687.18446
C44: EBITDA | D44: USD | H44: =H42-H43 -> 17497.92922 | I44: =I42-I43 -> 17185.19722 | J44: 16866.21058 | K44: 16540.8442 | L44: 16208.9705 | M44: 15870.45933 | N44: 15525.17793 | O44: 15172.9909 | P44: 14813.76014 | Q44: 14447.34476 | R44: 17497.92922 | S44: 17185.19722 | T44: 16866.21058 | U44: 16540.8442 | V44: 16208.9705 | W44: 15870.45933 | X44: 15525.17793 | Y44: 15172.9909 | Z44: 14813.76014 | AA44: 14447.34476
C45: Cap Exp | G45: =E5 -> 100000 | Q45: =G45 -> 100000
C46: Cash Flow | G46: =G44-G45 -> -100000 | H46: =H44-H45 -> 17497.92922 | I46: 17185.19722 | J46: 16866.21058 | K46: 16540.8442 | L46: 16208.9705 | M46: 15870.45933 | N46: 15525.17793 | O46: 15172.9909 | P46: 14813.76014 | Q46: -85552.65524 | R46: 17497.92922 | S46: 17185.19722 | T46: 16866.21058 | U46: 16540.8442 | V46: 16208.9705 | W46: 15870.45933 | X46: 15525.17793 | Y46: 15172.9909 | Z46: 14813.76014 | AA46: 14447.34476
C48: IRR | E48: =IRR(G46:AA46) -> 0.1

Sheet LCOs
A1: Green Ammonia Pre-Feasibility
F2: Power Cost | G2: USD/MWH | H2: =F32 -> 24.93
F3: Hydrogen Cost | G3: USD/kg H2 | H3: =H110 -> 2.018638274 | I3: Capital Cost/kW | J3: =F58 -> 630 | K3: Efficiency kWh/kg | L3: =H40 -> 56
F4: Air Separation | G4: USD/Tn N | H4: =F134 -> 27.00907005 | I4: Capital Cost/Tn | J4: =F118 -> 22 | K4: Efficiency MWh/Tn | L4: =F117 -> 0.9
F5: Compression | G5: USD/Tn NH3 | H5: =F165 -> 25.8661121 | I5: Capital Cost/kW | J5: =F151 -> 235.09 | K5: Efficiency TnN/H2 | L5: =F162 -> 5.6
F6: Ammonia | G6: USD/Tn NH3 | H6: =H221 -> 512.4429956 | I6: Capital Cost/kW | J6: =F191 -> 487 | K6: Efficiency TnN/H2
B8: Key Dates
C9: Construction Date | E9: Date
C10: Construction Period | E10: Year | F10: 1
C11: Operation Date | E11: Date
C12: Operation Period | E12: Years | F12: =F14-F10 -> 24
C13: End of Life | E13: Date
C14: Total Life | E14: Year | F14: =24+F10 -> 25
B16: Economics
D17: Inflation in Purchase Contracts | E17: % p.a. | F17: 0
D18: Inflation in General O&M | E18: % p.a. | F18: 0.0321
D19: Declining Factor (1-SL) | E19: Factor | F19: 1
D20: Tax Rate | E20: % | F20: 0
D21: Cost of Equity | E21: % | F21: 0.12
D22: Cost of Debt | E22: % | F22: 0.062
D23: Interest Rate - Same as cost of Debt | E23: % | F23: =F22*(1-F20) -> 0.062 | H23: Debt Should be After-tax
D24: Ideal Debt Amount in % | E24: % | F24: 0.7
D25: Maximum Equity % possible | E25: % | F25: 0.3
D26: WACC - Nominal | E26: % | F26: =F25*F21+F24*F23 -> 0.0794 | H26: =F24*F20+F23*F21
D27: WACC - Real Adj. by Inflation | E27: % | F27: =(1+F26)/(1+F17)-1 -> 0.0794 | H27: =(1+F25)/(1+F17)-1
D29: Inflation Factor for OpEx | E29: Factor | F29: =PV(F27,F14,-1)/PV(F26,F14,-1) -> 1 | H29: =_xlfn.FORMULATEXT(F29) -> =PV(F27,F14,-1)/PV(F26,F14,-1)
B31: Power Scenarios
D32: Live Case -> Choose from Dropdown | E32: USD/MWh | F32: =K32 -> 24.93 | I32: 2 | K32: =INDEX(F33:F36,I32) -> 24.93
D33: Base Case | E33: USD/MWh | F33: 27.585
D34: Low Case | E34: USD/MWh | F34: 24.93
D35: High Case | E35: USD/MWh | F35: 40.985
D36: Med Case | E36: USD/MWh | F36: 35.73
B38: Electrolysis Plant | F38: Non Stack | G38: Stack | H38: Total
D39: Load Factor | E39: % | H39: 0.96
D40: Efficiency | E40: kWh/kgH2 | H40: 56
D41: Learning Curve | E41: % p.a. | H41: 0.01
C43: Part 1 -- Production
D44: Hydrogen Production | E44: kg/Yr | H44: =F57*G83*1000/H40 -> 60068571.43
D45: Hydrogen Production | E45: Tn/Year | H45: =H44/1000 -> 60068.57143
C47: Part 2 - Capital Expenditures | F47: Non-Stack | G47: Stack | H47: Total
D48: IRR Target | E48: % | F48: =F27 -> 0.0794 | G48: =F48 -> 0.0794 | H48: =G48 -> 0.0794
D49: Tax Rate | E49: % | F49: =$F$20 -> 0 | G49: =$F$20 -> 0 | H49: =$F$20 -> 0
D51: Construction Period | E51: Years | F51: 1 | G51: =F51 -> 1
D52: Stack Lifetime | E52: Hours | G52: 80000
D53: Hours of Production | E53: Hours | F53: =G83 -> 8409.6 | G53: =F53 -> 8409.6 | H53: =G53 -> 8409.6
D54: Lifetime = Tax Life | E54: Years | F54: =F12 -> 24 | G54: =ROUND(G52/G53,0) -> 10
D56: Stack Weight - % of CapEx | E56: % | F56: =1-G56 -> 0.54 | G56: 0.46 | H56: =F56+G56 -> 1
D57: Electrolyser Capacity | E57: MW | F57: 400
D58: Electrolyser CapEx | E58: USD/kW | F58: 630
D59: Total Capital Expenditures | E59: USD | F59: =F57*F58*1000 -> 252000000 | G59: =F59 -> 252000000 | H59: =G59 -> 252000000
D60: Construction Factor | E60: Factor | F60: =FV(F48,F51,-1/F51) -> 1 | G60: =FV(G48,G51,-1/G51) -> 1
F61: =F59*F60 -> 252000000 | G61: =G59*G60 -> 252000000 | H61: =G61 -> 252000000
D62: Initial System CapEx | E62: USD | F62: =F61*F60*F56 -> 136080000 | G62: =G61*G60*G56 -> 115920000 | H62: =G62+F62 -> 252000000
D64: Payment Factor without Taxes | E64: % | F64: =PMT(F48,F54,-1) -> 0.09450318392 | G64: =PMT(G48,G54,-1) -> 0.148626422
D65: Payment Factor with Taxes | E65: % | F65: =F64/(1-F49) -> 0.09450318392 | G65: =G64/(1-G49) -> 0.148626422
D66: PV factor for Depreciation Tax Shield | E66: % | F66: =PV(F48,F54,-1/F54)*F49 -> 0 | G66: =PV(G48,G54,-1/G54)*G49 -> 0
D68: Recovery Net of Depreciation Shield | E68: USD | F68: =F62*(1-F66) -> 136080000 | G68: =G62*(1-G66) -> 115920000 | H68: =F68+G68 -> 252000000
D69: Captial Recovery | E69: USD | F69: =F68*F65 -> 12859993.27 | G69: =G68*G65 -> 17228774.84 | H69: =F69+G69 -> 30088768.11
D72: Stack Lifetime | E72: Years | H72: =G52/G83 -> 9.512937595
D73: Stack Replacements | E73: # | H73: =ROUNDUP(F12/H72,0) -> 3
C75: Part 3 - Operational Costs
D76: Water Requirement | E76: L/m3H2 | H76: 1
D77: Water Requirement Conversion | E77: L/kgH2 | H77: 11
D78: Total Water Consumption | E78: L/Yr | H78: =H44*H77 -> 660754285.7
D79: Total Water Consumption | E79: m3/Yr | H79: =H78/1000 -> 660754.2857
D80: Water Price | E80: USD/m3 | H80: 0.5
D81: Water Expense | E81: USD/Yr | H81: =H80*H79 -> 330377.1429
D83: Operational Hours | E83: Hours/Yr | G83: =8760*H39 -> 8409.6
D84: Degradation of Stack | E84: % p.a. | G84: 0.01
D85: Life | E85: Years | G85: =G54 -> 10
D86: Total Power Requirement w/o Degradation | E86: MWh/Yr | G86: =F57*G83 -> 3363840
D87: Power Price | E87: USD/MWh | G87: =F32 -> 24.93
D88: Power Cost without Degradation | E88: USD | G88: =G86*G87 -> 83860531.2
D90: Target IRR | E90: % | G90: =G48 -> 0.0794
D91: IRR Adjusted for Degradation | E91: % | G91: =(1+G90)/(1+G84)-1 -> 0.06871287129
D92: Degradation Adjustment | E92: Factor | G92: =PV(G91,G85,-1)/PV(G90,G85,-1) -> 1.050129084
D93: Power Recovery | E93: USD | G93: =G92*G88 -> 88064382.83 | H93: =G93 -> 88064382.83
D95: Electrolyser OpEx - as % of CapEx | E95: % | G95: 0.015
D96: Life | E96: Years | H96: =F12 -> 24
D97: Operation and Maintenance | E97: USD/Yr | H97: =F62*G95 -> 2041200
D98: Infation Rate for O&M | E98: % | H98: =F18 -> 0.0321
D99: Nominal IRR | E99: % | H99: =F26 -> 0.0794
D100: IRR Adjusted for O&M Inflation | E100: % | H100: =(1+H99)/(1+H98)-1 -> 0.04582889255
D101: Inflation Adjustment Factor | E101: Factor | H101: =PV(H100,H96,-1)/PV(H99,H96,-1) -> 1.358607336
D102: OpEx Adjutsed | E102: USD/Yr | H102: =H97*H101 -> 2773189.295
D104: Total OpEx to Recover | E104: USD/Yr | H104: =H81+H93+H102 -> 91167949.26
D105: Total Capital Recovery | E105: USD/Yr | H105: =H69 -> 30088768.11
D106: Total Cost to Recover | E106: USD/Yr | H106: =H104+H105 -> 121256717.4
D108: Total Hydrogen Production | E108: kg/Yr | H108: =H44 -> 60068571.43
C110: LEVELIZED COST OF HYDROGEN | E110: USD/kg | H110: =H106/H108 -> 2.018638274
B112: Air Separation Plant
D113: Nitrogen in Air | E113: % | F113: 0.78 | I113: D&Tax-Shield W/O Rep | L113: =L423 -> 0 | M113: 1 | N113: 2 | O113: 3 | P113: 4 | Q113: 5 | R113: 6 | S113: 7 | T113: 8 | U113: 9 | V113: 10 | W113: 11 | X113: 12 | Y113: 13 | Z113: 14 | AA113: 15 | AB113: 16 | AC113: 17 | AD113: 18 | AE113: 19 | AF113: 20 | AG113: 21 | AH113: 22 | AI113: 23 | AJ113: 24 | AK113: 25 | AL113: 26 | AM113: 27 | AN113: 28 | AO113: 29 | AP113: =AO423 -> 29
D114: Air Intake | E114: Tn/Yr | F114: =F116*1/0.78 -> 354250.5495 | I114: ASU | K114: Flag | L114: =L113<=$F$14 -> TRUE | M114: =M113<=$F$14 -> TRUE | N114: =N113<=$F$14 -> TRUE | O114: =O113<=$F$14 -> TRUE | P114: =P113<=$F$14 -> TRUE | Q114: =Q113<=$F$14 -> TRUE | R114: =R113<=$F$14 -> TRUE | S114: =S113<=$F$14 -> TRUE | T114: =T113<=$F$14 -> TRUE | U114: =U113<=$F$14 -> TRUE | V114: =V113<=$F$14 -> TRUE | W114: =W113<=$F$14 -> TRUE | X114: =X113<=$F$14 -> TRUE | Y114: =Y113<=$F$14 -> TRUE | Z114: =Z113<=$F$14 -> TRUE | AA114: =AA113<=$F$14 -> TRUE | AB114: =AB113<=$F$14 -> TRUE | AC114: =AC113<=$F$14 -> TRUE | AD114: =AD113<=$F$14 -> TRUE | AE114: =AE113<=$F$14 -> TRUE | AF114: =AF113<=$F$14 -> TRUE | AG114: =AG113<=$F$14 -> TRUE | AH114: =AH113<=$F$14 -> TRUE | AI114: =AI113<=$F$14 -> TRUE | AJ114: =AJ113<=$F$14 -> TRUE | AK114: =AK113<=$F$14 -> TRUE | AL114: =AL113<=$F$14 -> FALSE | AM114: =AM113<=$F$14 -> FALSE | AN114: =AN113<=$F$14 -> FALSE | AO114: =AO113<=$F$14 -> FALSE
D115: Hydrogen to Nitrogen Ratio | E115: Ratio | F115: 4.6 | I115: Year | K115: =F14 -> 25
D116: Amount of Nitrogen Required | E116: Tn/Yr | F116: =F115*H108/1000 -> 276315.4286 | I116: Depreciation Rate | K116: =F19 -> 1 | L116: =IFERROR(VDB(1,0,$K$115,K113,L113,$K$116),0) -> 0 | M116: =IFERROR(VDB(1,0,$K$115,L113,M113,$K$116),0) -> 0.04 | N116: 0.04 | O116: 0.04 | P116: 0.04 | Q116: 0.04 | R116: 0.04 | S116: 0.04 | T116: 0.04 | U116: 0.04 | V116: 0.04 | W116: 0.04 | X116: 0.04 | Y116: 0.04 | Z116: 0.04 | AA116: 0.04 | AB116: 0.04 | AC116: 0.04 | AD116: 0.04 | AE116: 0.04 | AF116: 0.04 | AG116: 0.04 | AH116: 0.04 | AI116: 0.04 | AJ116: 0.04 | AK116: 0.04 | AL116: 0 | AM116: 0 | AN116: 0 | AO116: 0
D117: Nominal Power | E117: MWh/TnN2 | F117: 0.9 | I117: NPV | K117: =NPV(F26,L116:AO116) -> 0.39761774
D118: Unitary Cost (Cap Exp/Ton-yr) | E118: USD/TnN2-yr | F118: 22 | I118: Tax Rate | K118: =F20 -> 0
D119: ASU CapEx | E119: USD | F119: =F118*F116 -> 6078939.429 | I119: Depreciation Exp. | K119: =K117*K118 -> 0 | L119: =L116*L114*SUM($F$62:$F$110) -> 0 | M119: =M116*M114*$F$119 -> 243157.5771 | N119: =N116*N114*$F$119 -> 243157.5771 | O119: 243157.5771 | P119: 243157.5771 | Q119: 243157.5771 | R119: 243157.5771 | S119: 243157.5771 | T119: 243157.5771 | U119: 243157.5771 | V119: 243157.5771 | W119: 243157.5771 | X119: 243157.5771 | Y119: 243157.5771 | Z119: 243157.5771 | AA119: 243157.5771 | AB119: 243157.5771 | AC119: 243157.5771 | AD119: 243157.5771 | AE119: 243157.5771 | AF119: 243157.5771 | AG119: 243157.5771 | AH119: 243157.5771 | AI119: 243157.5771 | AJ119: 243157.5771 | AK119: 243157.5771 | AL119: 0 | AM119: 0 | AN119: 0 | AO119: 0
D120: Lifetime of Air Separation Unit | E120: Years | F120: 25
D122: ASU Power Consumption | E122: MWh/Yr | F122: =F116 -> 276315.4286 | G122: Why is power =to Nitrogen
D123: Energy Price | E123: USD/MWh | F123: =F32 -> 24.93
D124: Energy Expense | E124: USD/Yr | F124: =F122*F123 -> 6888543.634
D126: Total CapEx Recovery | E126: USD/Yr | F126: =PMT(F26,F12,-F119) -> 574479.1309
D127: CapEx Rec - Adj. with Tax Shield | E127: USD/Yr | F127: =F126/(1-F20) -> 574479.1309
D128: CapEx Rec - Adj. with Depreciation | E128: USD/Yr | F128: =F127*(1-K119) -> 574479.1309
D130: Total Capital to Recover Per Yer | E130: USD/Yr | F130: =F128+F124 -> 7463022.765
D132: Total Nitrogen Produced | E132: Tn/Yr | F132: =F116 -> 276315.4286
C134: Levelized Cost of Nitrogen | E134: USD/Tn | F134: =F130/F132 -> 27.00907005
B136: Compression Unit
D137: Amount of Hydrogen Compressed | E137: Tn/Yr | F137: =H45 -> 60068.57143
D138: Amount of Nitrogen Compressed | E138: Tn/Yr | F138: =F132 -> 276315.4286
D139: Total Compressed | E139: Tn/Yr | F139: =SUM(F137:F138) -> 336384
D140: Total Compressed | E140: Tn/Hr | F140: =F139/F53 -> 40
D141: Conversion | E141: kg/Tn | F141: 907
D142: Total Compressed | E142: kg/Hr | F142: =F140/F141 -> 0.0441014333
D144: Lifetime of the Compressor | E144: Years | F144: 25
D146: Power Requirement for Compression | E146: MWh/Tn | F146: 1
D147: Total Power Consumption | E147: MWh/Yr | F147: =F146*SUM(F137:F138) -> 336384 | G147: =F147/8760 -> 38.4
D148: Energy Price | E148: USD/MWh | F148: =F123 -> 24.93
D149: Energy Expense | E149: USD/Yr | F149: =F147*F148 -> 8386053.12
D151: CapEx Cost of Compression | E151: USD/kW | F151: 235.09
D152: Capacity of Compressor | E152: MW | F152: 14.372
D153: CapEx of Compressor | E153: USD | F153: =F151*F152*1000 -> 3378713.48
D156: Capital Recovery of Compression | E156: USD/Yr | F156: =PMT(F26,F14,-F153) -> 314893.1328
D157: Cpital Recovery Adjusted by Tax Shield | E157: USD/Yr | F157: =F156/(1-F20) -> 314893.1328
D158: Capital Recovery Adjusted by Depreciation | E158: USD/Yr | F158: =F157*(1-K376) -> 314893.1328
D160: Total Capital to Recover per Year | E160: USD/Yr | F160: =F158+F149 -> 8700946.253
D162: Ammonia Production Factor based on H2 | E162: TnNH3/H2 | F162: 5.6
D163: Theoretical Ammonia Production | E163: TnNH3/Yr | F163: =F162*F137 -> 336384
C165: Levelized cost of Compression per Tn of NH3 | E165: USD/TnNH3 | F165: =F160/F163 -> 25.8661121
B167: Ammonia Production Plant
F169: Base | G169: Replacement | H169: Total
D170: Conversion Efficiency | E170: % | F170: 0.97
D171: Load Factor | E171: % | F171: 0.96
D172: Amount of Ammonia Produced | E172: Tn/Yr | F172: =F163*F170 -> 326292.48
D174: OpEx as % of CapEx | E174: % | F174: 0.015
D175: Total OpEx | E175: USD/Yr | F175: =F174*F293 -> 2922000
D176: Total OpEx Adj. By Inflation | E176: USD/Yr | F176: =F175*F29 -> 2922000
D178: Power Consumption | E178: MWh/TnNH3 | F178: 0.8
D179: Total Power Required | E179: MWh/Yr | F179: =F172*F178 -> 261033.984
D180: Power Price | E180: USD/MWh | F180: =F32 -> 24.93
D181: Total Power Expense | E181: USD/Yr | F181: =F179*F180 -> 6507577.221 | H181: =F181+G181 -> 6507577.221
D183: Total Hydrogen Expense | E183: USD/Yr | F183: =F137*H110*1000 -> 121256717.4
D184: Total Nitrogen Expense | E184: USD/Yr | F184: =F138*F134 -> 7463022.765
D185: Total Compression Cost | E185: USD/Yr | F185: =F165*F172 -> 8439917.865
D186: Total Power Expense | E186: USD/Yr | F186: =F181 -> 6507577.221
D187: Total Operation Costs | E187: USD/Yr | F187: =F176 -> 2922000
D188: Total Operation and Maintenance | E188: USD/Yr | F188: =SUM(F183:F187) -> 146589235.2 | H188: =F188 -> 146589235.2
D190: Total MW Installed | E190: MW | F190: =F57 -> 400
D191: CapEx per kWe | E191: USD/kWe | F191: 487
D192: Construction Period | E192: Years | F192: =F10 -> 1
D193: Real IRR | E193: IRR | F193: =F27 -> 0.0794
D194: Construction Cost of Capital Factor | E194: Factor | F194: =FV(F193,F192,-1/F192) -> 1
D195: Capital Expenditures Before Adjustment | E195: USD | F195: =F190*F191*1000 -> 194800000
D196: Total Capital Expenditures with Adjustment | E196: USD | F196: =F195*F194 -> 194800000
D198: Replacement Cost as % of CapEx | E198: % | F198: 0.3
D199: Weighting | E199: % | F199: =1-F198 -> 0.7 | G199: =F198 -> 0.3
D200: Base Capital Expenditues at Total Life | E200: USD | F200: =(1-F198)*F196 -> 136360000 | G200: =G199*F196 -> 58440000 | H200: =F200+G200 -> 194800000
D202: Hours Until Replacement | E202: Hours | G202: 100000 | J202: 80000
D203: Hours | E203: Hours | G203: =G83 -> 8409.6
D204: Year of Replacement | E204: Year | F204: =F12 -> 24 | G204: =ROUND(G202/G203,0) -> 12
D206: Nominal IRR | E206: % | F206: =F26 -> 0.0794 | G206: =F206 -> 0.0794
D207: Real IRR | E207: % | F207: =F27 -> 0.0794 | G207: =F207 -> 0.0794
D208: Tax Rate | E208: % | F208: =F20 -> 0 | G208: =F208 -> 0
D210: Nominal PMT without Taxes | E210: % | F210: =PMT(F206,F204,-1) -> 0.09450318392 | G210: =PMT(G206,G204,-1) -> 0.1322827944
D211: Nominal PMT with Tax Payments | E211: % | F211: =F210/(1-F208) -> 0.09450318392 | G211: =G210/(1-G208) -> 0.1322827944
D212: PV of Tax Depreciation | E212: % | F212: =PV(F206,F204,-1/(F204)) -> 0.4409022526 | G212: =PV(G206,G204,-1/(G204)) -> 0.6299635089
D213: Tax Shield Factor | E213: % | F213: =F212*F208 -> 0 | G213: =G212*G208 -> 0
D214: Final Nominal Recovery Factor | E214: % | F214: =F210*(1-F213)/(1-F208) -> 0.09450318392 | G214: =G211*(1-G213) -> 0.1322827944
D216: Total Capital Recovery with Depreciation | E216: USD/Yr | F216: =F200*F214 -> 12886454.16 | G216: =G200*G214 -> 7730606.505 | H216: =F216+G216 -> 20617060.66
D218: Total Capital and Operating Costs for LCOA | E218: USD/Yr | F218: =F216+F188 -> 159475689.4 | G218: =G216+G188 -> 7730606.505 | H218: =F218+G218 -> 167206295.9
D220: Total Ammonia Produced | E220: TnNH3/Yr | F220: =F172 -> 326292.48 | H220: =F220 -> 326292.48
D221: Levelized Cost of Ammonia | E221: USD/TnNH3 | F221: =F218/F220 -> 488.7507349 | H221: =H218/H220 -> 512.4429956
B223: Alternative Method for Computing Replacement Cost
D225: Total Capital Expenditures | E225: USD | F225: =F293 -> 194800000
D226: Replacement Percent | E226: % | F226: =F198 -> 0.3
D227: Replacement without Learning | E227: USD | F227: =F225*F226 -> 58440000
D229: Portion with Long Life | E229: USD | F229: =F225*(1-F226) -> 136360000
D230: Tax Shield Percent | E230: % | F230: =F213 -> 0
D231: After Tax Shield | E231: USD | F231: =F229*(1-F230) -> 136360000
D233: Portion with Short Life | E233: USD | F233: =F227 -> 58440000
D234: Tax Shield Percent | E234: % | F234: =G213 -> 0
D235: After Tax Shield | E235: USD | F235: =F233*(1-F234) -> 58440000
D237: Total Years | E237: Life | F237: =F12 -> 24
D238: Replacements | E238: Number | F238: =F237/G204 -> 2
H239: =F227 -> 58440000 | I239: =G280 -> 0 | K239: =F27 -> 0.0794 | M239: =F227 -> 58440000 | N239: =G204 -> 12
G240: Include | H240: Amount | I240: Learning Fac | J240: After Learning | K240: PV Fac | L240: Combined | M240: PV of Cost | N240: Tax Life | O240: Tax Shield
F241: 0 | H241: =$H$239*G241 -> 0
D242: Replacement 1 | E242: 1 | F242: =G204 -> 12 | G242: =(F242<$F$237)*1 -> 1 | H242: =$H$239*G242 -> 58440000 | I242: =1/(1+I$239)^$F242 -> 1 | J242: =H242*I242 -> 58440000 | K242: =1/(1+K$239)^$F242*G242 -> 0.3997707687 | L242: =K242*I242 -> 0.3997707687 | M242: =L242*$M$239 -> 23362603.72
D243: Replacement 2 | E243: 2 | F243: =$G$204*E243 -> 24 | G243: =(F243<$F$237)*1 -> 0 | H243: 0 | I243: 1 | J243: =H243*I243 -> 0 | K243: 0 | L243: 0 | M243: 0
D244: Replacement 3 | E244: 3 | F244: =$G$204*E244 -> 36 | G244: 0 | H244: 0 | I244: 1 | J244: 0 | K244: 0 | L244: 0 | M244: 0
D245: Replacement 4 | E245: 4 | F245: =$G$204*E245 -> 48 | G245: 0 | H245: 0 | I245: 1 | J245: 0 | K245: 0 | L245: 0 | M245: 0
D246: Replacement 5 | E246: 5 | F246: =$G$204*E246 -> 60 | G246: 0 | H246: 0 | I246: 1 | J246: 0 | K246: 0 | L246: 0 | M246: 0
D247: Replacement 6 | E247: 6 | F247: =$G$204*E247 -> 72 | G247: 0 | H247: 0 | I247: 1 | J247: 0 | K247: 0 | L247: 0 | M247: 0
D249: Last Replacement | F249: =INDEX(F242:F247,MATCH(0,G242:G247,0)-1) -> 12
D250: Years of Operation | F250: =F237-F249 -> 12
D251: Replacement Life | F251: =G204 -> 12
D253: Discount Rate | F253: =K239 -> 0.0794
D254: PV of Total Operation | F254: =PV(F253,F251,-1) -> 7.559562107
D255: PV at Sale Date | F255: =PV(F253,F250,-1) -> 7.559562107
... 115 more rows

Sheet Fin. Model Electroyzer
D2: Important Outputs ---> | E2: Pre Tax IRR | F2: =F89 -> 0.4580025448 | I2: Construction | J2: =LCOs!$F$194 -> 1
E3: After Tax IRR
E4: Equity IRR
D5: Construction Period | E5: =E11 -> 1 | F5: =F11 -> Years | I5: =-E5+1 -> 0 | J5: =I5+1 -> 1 | K5: =J5+1 -> 2 | L5: 3 | M5: 4 | N5: 5 | O5: 6 | P5: 7 | Q5: 8 | R5: 9 | S5: 10 | T5: 11 | U5: 12 | V5: 13 | W5: 14 | X5: 15 | Y5: 16 | Z5: 17 | AA5: 18 | AB5: 19 | AC5: 20 | AD5: 21 | AE5: 22 | AF5: 23 | AG5: 24 | AH5: 25 | AI5: 26 | AJ5: 27 | AK5: 28 | AL5: 29 | AM5: 30 | AN5: 31
D6: Construction Phase | E6: 0 | F6: Flag | I6: =I5<=$E$6 -> TRUE | J6: =J5<=$E$6 -> FALSE | K6: FALSE | L6: FALSE | M6: FALSE | N6: FALSE | O6: FALSE | P6: FALSE | Q6: FALSE | R6: FALSE | S6: FALSE | T6: FALSE | U6: FALSE | V6: FALSE | W6: FALSE | X6: FALSE | Y6: FALSE | Z6: FALSE | AA6: FALSE | AB6: FALSE | AC6: FALSE | AD6: FALSE | AE6: FALSE | AF6: FALSE | AG6: FALSE | AH6: FALSE | AI6: FALSE | AJ6: FALSE | AK6: FALSE | AL6: FALSE | AM6: FALSE | AN6: FALSE
D7: Operation Phase | E7: =E12 -> 24 | F7: =F12 -> Years | I7: =AND(I5>$E$6,I5<=$E$7) -> FALSE | J7: =AND(J5>$E$6,J5<=$E$7) -> TRUE | K7: TRUE | L7: TRUE | M7: TRUE | N7: TRUE | O7: TRUE | P7: TRUE | Q7: TRUE | R7: TRUE | S7: TRUE | T7: TRUE | U7: TRUE | V7: TRUE | W7: TRUE | X7: TRUE | Y7: TRUE | Z7: TRUE | AA7: TRUE | AB7: TRUE | AC7: TRUE | AD7: TRUE | AE7: TRUE | AF7: TRUE | AG7: TRUE | AH7: FALSE | AI7: FALSE | AJ7: FALSE | AK7: FALSE | AL7: FALSE | AM7: FALSE | AN7: FALSE
D8: Debt Repayment Phase | E8: =E18 -> 20 | F8: Years | I8: =AND(I5>$E$6,I5<=$E$8) -> FALSE | J8: =AND(J5>$E$6,J5<=$E$8) -> TRUE | K8: TRUE | L8: TRUE | M8: TRUE | N8: TRUE | O8: TRUE | P8: TRUE | Q8: TRUE | R8: TRUE | S8: TRUE | T8: TRUE | U8: TRUE | V8: TRUE | W8: TRUE | X8: TRUE | Y8: TRUE | Z8: TRUE | AA8: TRUE | AB8: TRUE | AC8: TRUE | AD8: FALSE | AE8: FALSE | AF8: FALSE | AG8: FALSE | AH8: FALSE | AI8: FALSE | AJ8: FALSE | AK8: FALSE | AL8: FALSE | AM8: FALSE | AN8: FALSE
B9: Assumptions
C10: Timing
D11: Construction Period | E11: =LCOs!F51 -> 1 | F11: Years
D12: Operation Period | E12: =LCOs!F12 -> 24 | F12: Years
D13: Project Lifetime Including Constructino | E13: =LCOs!F14 -> 25 | F13: Years
C15: Debt & Equity Financing
D16: Debt Percent | E16: 0.7 | F16: %
D17: Debt Commitment | E17: =Results!R31*E16 -> 234383234.8 | F17: USD
D18: Debt Tenor | E18: 20 | F18: Years
D19: Interest Rate | E19: 0.062 | F19: %
D21: Tax Rate | E21: =LCOs!F20 -> 0
D22: Cost of Equity | E22: 0.12 | F22: %
D23: Cost of Debt | E23: =E19*(1-E21) -> 0.062 | F23: %
D24: Equity Amount | E24: =1-E16 -> 0.3 | F24: %
D25: Equity Commitment | E25: =Results!R31*'Fin. Model Electroyzer'!E24 -> 100449957.8 | F25: USD
D26: WACC - Nominal | E26: =E24*E22+E23*E16 -> 0.0794 | F26: %
D27: WACC - Real Adj. by Inflation | E27: =E26 -> 0.0794 | F27: %
C29: Residual Value
D30: Stack Life | E30: =LCOs!G54 -> 10
D31: Total Life | E31: =LCOs!F54 -> 24
D32: Final Year Used | E32: =MOD(E31,E30) -> 4
D33: Final Year Residual | E33: =E30-E32 -> 6
B36: Operation Analysis for Ammonia | G36: Check
D38: Inflation Index for O&M Only | E38: Factor | F38: =LCOs!F18 -> 0.0321 | H38: 1 | I38: =H38 -> 1 | J38: =I38*(1+$F$38) -> 1.0321 | K38: 1.06523041 | L38: 1.099424306 | M38: 1.134715826 | N38: 1.171140204 | O38: 1.208733805 | P38: 1.24753416 | Q38: 1.287580007 | R38: 1.328911325 | S38: 1.371569378 | T38: 1.415596755 | U38: 1.461037411 | V38: 1.507936712 | W38: 1.556341481 | X38: 1.606300042 | Y38: 1.657862274 | Z38: 1.711079653 | AA38: 1.766005309 | AB38: 1.82269408 | AC38: 1.88120256 | AD38: 1.941589162 | AE38: 2.003914174 | AF38: 2.068239819 | AG38: 2.134630317 | AH38: 2.20315195 | AI38: 2.273873128 | AJ38: 2.346864455 | AK38: 2.422198804 | AL38: 2.499951386 | AM38: 2.580199826 | AN38: 2.66302424
D39: Operating Period | E39: Period | H39: 0 | I39: =H39+I7 -> 0 | J39: 1 | K39: 2 | L39: 3 | M39: 4 | N39: 5 | O39: 6 | P39: 7 | Q39: 8 | R39: 9 | S39: 10 | T39: 11 | U39: 12 | V39: 13 | W39: 14 | X39: 15 | Y39: 16 | Z39: 17 | AA39: 18 | AB39: 19 | AC39: 20 | AD39: 21 | AE39: 22 | AF39: 23 | AG39: 24 | AH39: 24 | AI39: 24 | AJ39: 24 | AK39: 24 | AL39: 24 | AM39: 24 | AN39: 24
D40: Replacement Period for Stack | E40: Flag | F40: =LCOs!G54 -> 10 | G40: =SUM(I40:AN40) -> 2 | I40: =(MOD(I39,$F$40)=0)*I7 -> 0 | J40: =(MOD(J39,$F$40)=0)*J7 -> 0 | K40: 0 | L40: 0 | M40: 0 | N40: 0 | O40: 0 | P40: 0 | Q40: 0 | R40: 0 | S40: 1 | T40: 0 | U40: 0 | V40: 0 | W40: 0 | X40: 0 | Y40: 0 | Z40: 0 | AA40: 0 | AB40: 0 | AC40: 1 | AD40: 0 | AE40: 0 | AF40: 0 | AG40: 0 | AH40: 0 | AI40: 0 | AJ40: 0 | AK40: 0 | AL40: 0 | AM40: 0 | AN40: 0
D41: Electricity Degradation Index | E41: Index | F41: =LCOs!G84 -> 0.01 | I41: =IF(H40,1*(1+$F$41),H41*(1+$F$41)) -> 0 | J41: =IF(I40,1*(1+$F$41),I41*(1+$F$41)) -> 0 | K41: 0 | L41: 0 | M41: 0 | N41: 0 | O41: 0 | P41: 0 | Q41: 0 | R41: 0 | S41: 0 | T41: 1.01 | U41: 1.0201 | V41: 1.030301 | W41: 1.04060401 | X41: 1.05101005 | Y41: 1.061520151 | Z41: 1.072135352 | AA41: 1.082856706 | AB41: 1.093685273 | AC41: 1.104622125 | AD41: 1.01 | AE41: 1.0201 | AF41: 1.030301 | AG41: 1.04060401 | AH41: 1.05101005 | AI41: 1.061520151 | AJ41: 1.072135352 | AK41: 1.082856706 | AL41: 1.093685273 | AM41: 1.104622125 | AN41: 1.115668347
D43: Hydrogen Production | E43: kg/yr | F43: =LCOs!H44 -> 60068571.43 | G43: =LCOs!H110 -> 2.018638274 | I43: =$F$43*I7 -> 0 | J43: 60068571.43 | K43: 60068571.43 | L43: 60068571.43 | M43: 60068571.43 | N43: 60068571.43 | O43: 60068571.43 | P43: 60068571.43 | Q43: 60068571.43 | R43: 60068571.43 | S43: 60068571.43 | T43: 60068571.43 | U43: 60068571.43 | V43: 60068571.43 | W43: 60068571.43 | X43: 60068571.43 | Y43: 60068571.43 | Z43: 60068571.43 | AA43: 60068571.43 | AB43: 60068571.43 | AC43: 60068571.43 | AD43: 60068571.43 | AE43: 60068571.43 | AF43: 60068571.43 | AG43: 60068571.43 | AH43: 0 | AI43: 0 | AJ43: 0 | AK43: 0 | AL43: 0 | AM43: 0 | AN43: 0
D44: Revenues | E44: USD/Yr | F44: =LCOs!H110 -> 2.018638274 | I44: =I43*$F$44 -> 0 | J44: 121256717.4 | K44: 121256717.4 | L44: 121256717.4 | M44: 121256717.4 | N44: 121256717.4 | O44: 121256717.4 | P44: 121256717.4 | Q44: 121256717.4 | R44: 121256717.4 | S44: 121256717.4 | T44: 121256717.4 | U44: 121256717.4 | V44: 121256717.4 | W44: 121256717.4 | X44: 121256717.4 | Y44: 121256717.4 | Z44: 121256717.4 | AA44: 121256717.4 | AB44: 121256717.4 | AC44: 121256717.4 | AD44: 121256717.4 | AE44: 121256717.4 | AF44: 121256717.4 | AG44: 121256717.4 | AH44: 0 | AI44: 0 | AJ44: 0 | AK44: 0 | AL44: 0 | AM44: 0 | AN44: 0
D46: Electriciy Consumption | E46: MWH | F46: =LCOs!G86 -> 3363840 | I46: =$F$46*I7*I41 -> 0 | J46: 0 | K46: 0 | L46: 0 | M46: 0 | N46: 0 | O46: 0 | P46: 0 | Q46: 0 | R46: 0 | S46: 0 | T46: 3397478.4 | U46: 3431453.184 | V46: 3465767.716 | W46: 3500425.393 | X46: 3535429.647 | Y46: 3570783.943 | Z46: 3606491.783 | AA46: 3642556.701 | AB46: 3678982.268 | AC46: 3715772.09 | AD46: 3397478.4 | AE46: 3431453.184 | AF46: 3465767.716 | AG46: 3500425.393 | AH46: 0 | AI46: 0 | AJ46: 0 | AK46: 0 | AL46: 0 | AM46: 0 | AN46: 0
D47: Power Expense | E47: USD | F47: =LCOs!G87 -> 24.93 | G47: =LCOs!F183 -> 121256717.4 | H47: =G47=J47 -> FALSE | I47: =I46*$F$47 -> 0 | J47: =J46*$F$47 -> 0 | K47: 0 | L47: 0 | M47: 0 | N47: 0 | O47: 0 | P47: 0 | Q47: 0 | R47: 0 | S47: 0 | T47: 84699136.51 | U47: 85546127.88 | V47: 86401589.16 | W47: 87265605.05 | X47: 88138261.1 | Y47: 89019643.71 | Z47: 89909840.15 | AA47: 90808938.55 | AB47: 91717027.93 | AC47: 92634198.21 | AD47: 84699136.51 | AE47: 85546127.88 | AF47: 86401589.16 | AG47: 87265605.05 | AH47: 0 | AI47: 0 | AJ47: 0 | AK47: 0 | AL47: 0 | AM47: 0 | AN47: 0
D49: Water Consumption | E49: Litres/m3 | F49: =LCOs!H79 -> 660754.2857 | I49: =$F$49*I7 -> 0 | J49: 660754.2857 | K49: 660754.2857 | L49: 660754.2857 | M49: 660754.2857 | N49: 660754.2857 | O49: 660754.2857 | P49: 660754.2857 | Q49: 660754.2857 | R49: 660754.2857 | S49: 660754.2857 | T49: 660754.2857 | U49: 660754.2857 | V49: 660754.2857 | W49: 660754.2857 | X49: 660754.2857 | Y49: 660754.2857 | Z49: 660754.2857 | AA49: 660754.2857 | AB49: 660754.2857 | AC49: 660754.2857 | AD49: 660754.2857 | AE49: 660754.2857 | AF49: 660754.2857 | AG49: 660754.2857 | AH49: 0 | AI49: 0 | AJ49: 0 | AK49: 0 | AL49: 0 | AM49: 0 | AN49: 0
D50: Water Expense | E50: USD | F50: =LCOs!H80 -> 0.5 | G50: =LCOs!F184 -> 7463022.765 | H50: =G50=J50 -> FALSE | I50: =I49*$F$50 -> 0 | J50: 330377.1429 | K50: 330377.1429 | L50: 330377.1429 | M50: 330377.1429 | N50: 330377.1429 | O50: 330377.1429 | P50: 330377.1429 | Q50: 330377.1429 | R50: 330377.1429 | S50: 330377.1429 | T50: 330377.1429 | U50: 330377.1429 | V50: 330377.1429 | W50: 330377.1429 | X50: 330377.1429 | Y50: 330377.1429 | Z50: 330377.1429 | AA50: 330377.1429 | AB50: 330377.1429 | AC50: 330377.1429 | AD50: 330377.1429 | AE50: 330377.1429 | AF50: 330377.1429 | AG50: 330377.1429 | AH50: 0 | AI50: 0 | AJ50: 0 | AK50: 0 | AL50: 0 | AM50: 0 | AN50: 0
D52: Operation Adj. by Inflation | E52: USD | F52: =LCOs!H97 -> 2041200 | G52: =LCOs!F176 -> 2922000 | H52: =J52=G52 -> FALSE | I52: =I38*$F$52*I7 -> 0 | J52: 2106722.52 | K52: 2174348.313 | L52: 2244144.894 | M52: 2316181.945 | N52: 2390531.385 | O52: 2467267.443 | P52: 2546466.728 | Q52: 2628208.31 | R52: 2712573.796 | S52: 2799647.415 | T52: 2889516.097 | U52: 2982269.564 | V52: 3078000.417 | W52: 3176804.23 | X52: 3278779.646 | Y52: 3384028.473 | Z52: 3492655.787 | AA52: 3604770.037 | AB52: 3720483.156 | AC52: 3839910.665 | AD52: 3963171.797 | AE52: 4090389.612 | AF52: 4221691.119 | AG52: 4357207.403 | AH52: 0 | AI52: 0 | AJ52: 0 | AK52: 0 | AL52: 0 | AM52: 0 | AN52: 0
D54: Total Expense | I54: =I47+I50+I52 -> 0 | J54: =J47+J50+J52 -> 2437099.663 | K54: 2504725.456 | L54: 2574522.037 | M54: 2646559.088 | N54: 2720908.528 | O54: 2797644.586 | P54: 2876843.87 | Q54: 2958585.452 | R54: 3042950.939 | S54: 3130024.558 | T54: 87919029.75 | U54: 88858774.58 | V54: 89809966.72 | W54: 90772786.42 | X54: 91747417.89 | Y54: 92734049.32 | Z54: 93732873.08 | AA54: 94744085.73 | AB54: 95767888.23 | AC54: 96804486.02 | AD54: 88992685.45 | AE54: 89966894.63 | AF54: 90953657.42 | AG54: 91953189.59 | AH54: 0 | AI54: 0 | AJ54: 0 | AK54: 0 | AL54: 0 | AM54: 0 | AN54: 0
D56: EBITDA | E56: USD | I56: =I44-I54 -> 0 | J56: =J44-J54 -> 118819617.7 | K56: 118751991.9 | L56: 118682195.3 | M56: 118610158.3 | N56: 118535808.8 | O56: 118459072.8 | P56: 118379873.5 | Q56: 118298131.9 | R56: 118213766.4 | S56: 118126692.8 | T56: 33337687.62 | U56: 32397942.79 | V56: 31446750.66 | W56: 30483930.95 | X56: 29509299.48 | Y56: 28522668.05 | Z56: 27523844.3 | AA56: 26512631.64 | AB56: 25488829.14 | AC56: 24452231.35 | AD56: 32264031.92 | AE56: 31289822.74 | AF56: 30303059.95 | AG56: 29303527.78 | AH56: 0 | AI56: 0 | AJ56: 0 | AK56: 0 | AL56: 0 | AM56: 0 | AN56: 0
D58: Construction Expenditures | E58: USD | F58: =LCOs!H62 -> 252000000 | G58: Period | H58: =E5 -> 1 | I58: =$F$58/$H$58*I6 -> 252000000 | J58: 0 | K58: 0 | L58: 0 | M58: 0 | N58: 0 | O58: 0 | P58: 0 | Q58: 0 | R58: 0 | S58: 0 | T58: 0 | U58: 0 | V58: 0 | W58: 0 | X58: 0 | Y58: 0 | Z58: 0 | AA58: 0 | AB58: 0 | AC58: 0 | AD58: 0 | AE58: 0 | AF58: 0 | AG58: 0 | AH58: 0 | AI58: 0 | AJ58: 0 | AK58: 0 | AL58: 0 | AM58: 0 | AN58: 0
D59: Replacements | E59: USD | F59: =LCOs!G62 -> 115920000 | I59: =$F$59*I40*I7 -> 0 | J59: =$F$59*J40*J7 -> 0 | K59: 0 | L59: 0 | M59: 0 | N59: 0 | O59: 0 | P59: 0 | Q59: 0 | R59: 0 | S59: 115920000 | T59: 0 | U59: 0 | V59: 0 | W59: 0 | X59: 0 | Y59: 0 | Z59: 0 | AA59: 0 | AB59: 0 | AC59: 115920000 | AD59: 0 | AE59: 0 | AF59: 0 | AG59: 0 | AH59: 0 | AI59: 0 | AJ59: 0 | AK59: 0 | AL59: 0 | AM59: 0 | AN59: 0
D60: Pre-Tax Cash Flow | E60: USD | I60: =I56-I58-I59 -> -252000000 | J60: =J56-J58-J59 -> 118819617.7 | K60: 118751991.9 | L60: 118682195.3 | M60: 118610158.3 | N60: 118535808.8 | O60: 118459072.8 | P60: 118379873.5 | Q60: 118298131.9 | R60: 118213766.4 | S60: 2206692.814 | T60: 33337687.62 | U60: 32397942.79 | V60: 31446750.66 | W60: 30483930.95 | X60: 29509299.48 | Y60: 28522668.05 | Z60: 27523844.3 | AA60: 26512631.64 | AB60: 25488829.14 | AC60: -91467768.65 | AD60: 32264031.92 | AE60: 31289822.74 | AF60: 30303059.95 | AG60: 29303527.78 | AH60: 0 | AI60: 0 | AJ60: 0 | AK60: 0 | AL60: 0 | AM60: 0 | AN60: 0
D61: IRR | E61: % | F61: =IRR(I60:AN60) -> 0.4580025448
D63: Financing Cost Balance
D64: Opening Balance | I64: =H67 -> 0 | J64: =I67 -> 252000000 | K64: 252000000 | L64: 252000000 | M64: 252000000 | N64: 252000000 | O64: 252000000 | P64: 252000000 | Q64: 252000000 | R64: 252000000 | S64: 252000000 | T64: 252000000 | U64: 252000000 | V64: 252000000 | W64: 252000000 | X64: 252000000 | Y64: 252000000 | Z64: 252000000 | AA64: 252000000 | AB64: 252000000 | AC64: 252000000 | AD64: 252000000 | AE64: 252000000 | AF64: 252000000 | AG64: 252000000 | AH64: 252000000 | AI64: 252000000 | AJ64: 252000000 | AK64: 252000000 | AL64: 252000000 | AM64: 252000000 | AN64: 252000000
D65: Add: Financing Cost | F65: =LCOs!F27 -> 0.0794 | I65: =I64*$F$65*I6 -> 0 | J65: 0 | K65: 0 | L65: 0 | M65: 0 | N65: 0 | O65: 0 | P65: 0 | Q65: 0 | R65: 0 | S65: 0 | T65: 0 | U65: 0 | V65: 0 | W65: 0 | X65: 0 | Y65: 0 | Z65: 0 | AA65: 0 | AB65: 0 | AC65: 0 | AD65: 0 | AE65: 0 | AF65: 0 | AG65: 0 | AH65: 0 | AI65: 0 | AJ65: 0 | AK65: 0 | AL65: 0 | AM65: 0 | AN65: 0
D66: Add: Construction | I66: =I58 -> 252000000 | J66: =J58 -> 0 | K66: 0 | L66: 0 | M66: 0 | N66: 0 | O66: 0 | P66: 0 | Q66: 0 | R66: 0 | S66: 0 | T66: 0 | U66: 0 | V66: 0 | W66: 0 | X66: 0 | Y66: 0 | Z66: 0 | AA66: 0 | AB66: 0 | AC66: 0 | AD66: 0 | AE66: 0 | AF66: 0 | AG66: 0 | AH66: 0 | AI66: 0 | AJ66: 0 | AK66: 0 | AL66: 0 | AM66: 0 | AN66: 0
D67: Closing Balance | I67: =I64+I65+I66 -> 252000000 | J67: =J64+J65+J66 -> 252000000 | K67: 252000000 | L67: 252000000 | M67: 252000000 | N67: 252000000 | O67: 252000000 | P67: 252000000 | Q67: 252000000 | R67: 252000000 | S67: 252000000 | T67: 252000000 | U67: 252000000 | V67: 252000000 | W67: 252000000 | X67: 252000000 | Y67: 252000000 | Z67: 252000000 | AA67: 252000000 | AB67: 252000000 | AC67: 252000000 | AD67: 252000000 | AE67: 252000000 | AF67: 252000000 | AG67: 252000000 | AH67: 252000000 | AI67: 252000000 | AJ67: 252000000 | AK67: 252000000 | AL67: 252000000 | AM67: 252000000 | AN67: 252000000
D69: Financing Cost Adder | E69: USD | F69: =AN67 -> 252000000 | G69: =F69/F58 -> 1
D72: Initial Depreciation Period | E72: Flag | F72: 1 | G72: =LCOs!F242 -> 12 | H72: =SUM(I72:AN72) -> 12 | I72: =AND(I$5>=$F72,I$5<=$G72)*1 -> 0 | J72: 1 | K72: 1 | L72: 1 | M72: 1 | N72: 1 | O72: 1 | P72: 1 | Q72: 1 | R72: 1 | S72: 1 | T72: 1 | U72: 1 | V72: 0 | W72: 0 | X72: 0 | Y72: =AND(Y$5>=$F72,Y$5<=$G72)*1 -> 0 | Z72: 0 | AA72: 0 | AB72: 0 | AC72: 0 | AD72: 0 | AE72: 0 | AF72: 0 | AG72: 0 | AH72: 0 | AI72: 0 | AJ72: 0 | AK72: 0 | AL72: 0 | AM72: 0 | AN72: 0
D73: Second Depreciation Period | E73: Flag | F73: =G72+1 -> 13 | G73: =F73+G72-1 -> 24 | H73: =SUM(I73:AN73) -> 12 | I73: 0 | J73: 0 | K73: 0 | L73: 0 | M73: 0 | N73: 0 | O73: 0 | P73: 0 | Q73: 0 | R73: 0 | S73: 0 | T73: 0 | U73: 0 | V73: 1 | W73: 1 | X73: 1 | Y73: 1 | Z73: 1 | AA73: 1 | AB73: 1 | AC73: 1 | AD73: 1 | AE73: 1 | AF73: 1 | AG73: 1 | AH73: 0 | AI73: 0 | AJ73: 0 | AK73: 0 | AL73: 0 | AM73: 0 | AN73: 0
D75: Long-term Portion Depreciation Base | E75: USD | F75: =LCOs!F199 -> 0.7 | G75: =F69*F75 -> 176400000 | I75: =$F$75*$G$75*I7 -> 0 | J75: 123480000 | K75: 123480000 | L75: 123480000 | M75: 123480000 | N75: 123480000 | O75: 123480000 | P75: 123480000 | Q75: 123480000 | R75: 123480000 | S75: 123480000 | T75: 123480000 | U75: 123480000 | V75: 123480000 | W75: 123480000 | X75: 123480000 | Y75: 123480000 | Z75: 123480000 | AA75: 123480000 | AB75: 123480000 | AC75: 123480000 | AD75: 123480000 | AE75: 123480000 | AF75: 123480000 | AG75: 123480000 | AH75: 0 | AI75: 0 | AJ75: 0 | AK75: 0 | AL75: 0 | AM75: 0 | AN75: 0
D76: Replacement Portion Depreciation Base | E76: USD | F76: =1-F75 -> 0.3 | G76: =F69*F76 -> 75600000 | I76: =$G$76*$F$76*I72 -> 0 | J76: =$G$76*$F$76*J72 -> 22680000 | K76: 22680000 | L76: 22680000 | M76: 22680000 | N76: 22680000 | O76: 22680000 | P76: 22680000 | Q76: 22680000 | R76: 22680000 | S76: 22680000 | T76: 22680000 | U76: 22680000 | V76: 0 | W76: 0 | X76: 0 | Y76: 0 | Z76: 0 | AA76: 0 | AB76: 0 | AC76: 0 | AD76: 0 | AE76: 0 | AF76: 0 | AG76: 0 | AH76: 0 | AI76: 0 | AJ76: 0 | AK76: 0 | AL76: 0 | AM76: 0 | AN76: 0
D77: First Replacement Depreciation Base | E77: USD | G77: =G76*G69 -> 75600000 | I77: =$G$77*I73 -> 0 | J77: =$G$77*J73 -> 0 | K77: 0 | L77: 0 | M77: 0 | N77: 0 | O77: 0 | P77: 0 | Q77: 0 | R77: 0 | S77: 0 | T77: 0 | U77: 0 | V77: 75600000 | W77: 75600000 | X77: 75600000 | Y77: 75600000 | Z77: 75600000 | AA77: 75600000 | AB77: 75600000 | AC77: 75600000 | AD77: 75600000 | AE77: 75600000 | AF77: 75600000 | AG77: 75600000 | AH77: 0 | AI77: 0 | AJ77: 0 | AK77: 0 | AL77: 0 | AM77: 0 | AN77: 0
D79: Tax Depreciation on Long-term Base Portion | E79: USD | F79: =LCOs!F12 -> 24 | G79: =1/F79 -> 0.04166666667 | I79: =I75*$G$79 -> 0 | J79: =J75*$G$79 -> 5145000 | K79: 5145000 | L79: 5145000 | M79: 5145000 | N79: 5145000 | O79: 5145000 | P79: 5145000 | Q79: 5145000 | R79: 5145000 | S79: 5145000 | T79: 5145000 | U79: 5145000 | V79: 5145000 | W79: 5145000 | X79: 5145000 | Y79: 5145000 | Z79: 5145000 | AA79: 5145000 | AB79: 5145000 | AC79: 5145000 | AD79: 5145000 | AE79: 5145000 | AF79: 5145000 | AG79: 5145000 | AH79: 0 | AI79: 0 | AJ79: 0 | AK79: 0 | AL79: 0 | AM79: 0 | AN79: 0
D80: Replacement Portion Depreciation | E80: USD | F80: =H72 -> 12 | G80: =1/F80 -> 0.08333333333 | I80: =$G$80*I76 -> 0 | J80: =$G$80*J76 -> 1890000 | K80: 1890000 | L80: 1890000 | M80: 1890000 | N80: 1890000 | O80: 1890000 | P80: 1890000 | Q80: 1890000 | R80: 1890000 | S80: 1890000 | T80: 1890000 | U80: 1890000 | V80: 0 | W80: 0 | X80: 0 | Y80: 0 | Z80: 0 | AA80: 0 | AB80: 0 | AC80: 0 | AD80: 0 | AE80: 0 | AF80: 0 | AG80: 0 | AH80: 0 | AI80: 0 | AJ80: 0 | AK80: 0 | AL80: 0 | AM80: 0 | AN80: 0
D81: First Replacement Depreciation | E81: USD | F81: =H73 -> 12 | G81: =1/F81 -> 0.08333333333 | I81: =$G$81*I77 -> 0 | J81: =$G$81*J77 -> 0 | K81: 0 | L81: 0 | M81: 0 | N81: 0 | O81: 0 | P81: 0 | Q81: 0 | R81: 0 | S81: 0 | T81: 0 | U81: 0 | V81: 6300000 | W81: 6300000 | X81: 6300000 | Y81: 6300000 | Z81: 6300000 | AA81: 6300000 | AB81: 6300000 | AC81: 6300000 | AD81: 6300000 | AE81: 6300000 | AF81: 6300000 | AG81: 6300000 | AH81: 0 | AI81: 0 | AJ81: 0 | AK81: 0 | AL81: 0 | AM81: 0 | AN81: 0
D83: Total Depreciation | E83: USD | F83: =NPV(F92,I83:AN83) -> 81313101.58 | I83: =SUM(I79:I81) -> 0 | J83: =SUM(J79:J81) -> 7035000 | K83: 7035000 | L83: 7035000 | M83: 7035000 | N83: 7035000 | O83: 7035000 | P83: 7035000 | Q83: 7035000 | R83: 7035000 | S83: 7035000 | T83: 7035000 | U83: 7035000 | V83: 11445000 | W83: 11445000 | X83: 11445000 | Y83: 11445000 | Z83: 11445000 | AA83: 11445000 | AB83: 11445000 | AC83: 11445000 | AD83: 11445000 | AE83: 11445000 | AF83: 11445000 | AG83: 11445000 | AH83: 0 | AI83: 0 | AJ83: 0 | AK83: 0 | AL83: 0 | AM83: 0 | AN83: 0
D85: EBIT | E85: USD | I85: =I56-I83 -> 0 | J85: =J56-J83 -> 111784617.7 | K85: 111716991.9 | L85: 111647195.3 | M85: 111575158.3 | N85: 111500808.8 | O85: 111424072.8 | P85: 111344873.5 | Q85: 111263131.9 | R85: 111178766.4 | S85: 111091692.8 | T85: 26302687.62 | U85: 25362942.79 | V85: 20001750.66 | W85: 19038930.95 | X85: 18064299.48 | Y85: 17077668.05 | Z85: 16078844.3 | AA85: 15067631.64 | AB85: 14043829.14 | AC85: 13007231.35 | AD85: 20819031.92 | AE85: 19844822.74 | AF85: 18858059.95 | AG85: 17858527.78 | AH85: 0 | AI85: 0 | AJ85: 0 | AK85: 0 | AL85: 0 | AM85: 0 | AN85: 0
D86: Taxes | E86: USD | F86: =LCOs!F20 -> 0 | I86: =I85*$F$86 -> 0 | J86: =J85*$F$86 -> 0 | K86: 0 | L86: 0 | M86: 0 | N86: 0 | O86: 0 | P86: 0 | Q86: 0 | R86: 0 | S86: 0 | T86: 0 | U86: 0 | V86: 0 | W86: 0 | X86: 0 | Y86: 0 | Z86: 0 | AA86: 0 | AB86: 0 | AC86: 0 | AD86: 0 | AE86: 0 | AF86: 0 | AG86: 0 | AH86: 0 | AI86: 0 | AJ86: 0 | AK86: 0 | AL86: 0 | AM86: 0 | AN86: 0
D87: After-tax Cash Flow | E87: USD | G87: =SUM(I87:AN87) -> 1113873568 | I87: =I60-I86 -> -252000000 | J87: =J60-J86 -> 118819617.7 | K87: 118751991.9 | L87: 118682195.3 | M87: 118610158.3 | N87: 118535808.8 | O87: 118459072.8 | P87: 118379873.5 | Q87: 118298131.9 | R87: 118213766.4 | S87: 2206692.814 | T87: 33337687.62 | U87: 32397942.79 | V87: 31446750.66 | W87: 30483930.95 | X87: 29509299.48 | Y87: 28522668.05 | Z87: 27523844.3 | AA87: 26512631.64 | AB87: 25488829.14 | AC87: -91467768.65 | AD87: 32264031.92 | AE87: 31289822.74 | AF87: 30303059.95 | AG87: 29303527.78 | AH87: 0 | AI87: 0 | AJ87: 0 | AK87: 0 | AL87: 0 | AM87: 0 | AN87: 0
D89: Pre-Tax IRR | E89: % | F89: =IRR(I60:AN60) -> 0.4580025448
D90: Pre-Tax NPV | E90: USD | F90: =NPV(E26,I60:AN60) -> 538567211.8
D91: After-tax IRR | E91: % | F91: =IRR(I87:AN87) -> 0.4580025448
D92: Target IRR | E92: % | F92: =LCOs!F26 -> 0.0794

Sheet Fin. Model NH3
D2: Important Outputs ---> | E2: Pre Tax IRR | F2: =F88 -> 0.0794 | I2: Construction | J2: =LCOs!$F$194 -> 1 | K2: =LCOs!F10 -> 1
E3: After Tax IRR
E4: Equity IRR
D5: Construction Period | E5: =E11 -> 1 | F5: =F11 -> Years | I5: =-E5+1 -> 0 | J5: =I5+1 -> 1 | K5: =J5+1 -> 2 | L5: 3 | M5: 4 | N5: 5 | O5: 6 | P5: 7 | Q5: 8 | R5: 9 | S5: 10 | T5: 11 | U5: 12 | V5: 13 | W5: 14 | X5: 15 | Y5: 16 | Z5: 17 | AA5: 18 | AB5: 19 | AC5: 20 | AD5: 21 | AE5: 22 | AF5: 23 | AG5: 24 | AH5: 25 | AI5: 26 | AJ5: 27 | AK5: 28 | AL5: 29 | AM5: 30 | AN5: 31
D6: Construction Phase | E6: 0 | F6: Flag | I6: =I5<=$E$6 -> TRUE | J6: =J5<=$E$6 -> FALSE | K6: FALSE | L6: FALSE | M6: FALSE | N6: FALSE | O6: FALSE | P6: FALSE | Q6: FALSE | R6: FALSE | S6: FALSE | T6: FALSE | U6: FALSE | V6: FALSE | W6: FALSE | X6: FALSE | Y6: FALSE | Z6: FALSE | AA6: FALSE | AB6: FALSE | AC6: FALSE | AD6: FALSE | AE6: FALSE | AF6: FALSE | AG6: FALSE | AH6: FALSE | AI6: FALSE | AJ6: FALSE | AK6: FALSE | AL6: FALSE | AM6: FALSE | AN6: FALSE
D7: Operation Phase | E7: =E12 -> 24 | F7: =F12 -> Years | I7: =AND(I5>$E$6,I5<=$E$7) -> FALSE | J7: =AND(J5>$E$6,J5<=$E$7) -> TRUE | K7: TRUE | L7: TRUE | M7: TRUE | N7: TRUE | O7: TRUE | P7: TRUE | Q7: TRUE | R7: TRUE | S7: TRUE | T7: TRUE | U7: TRUE | V7: TRUE | W7: TRUE | X7: TRUE | Y7: TRUE | Z7: TRUE | AA7: TRUE | AB7: TRUE | AC7: TRUE | AD7: TRUE | AE7: TRUE | AF7: TRUE | AG7: TRUE | AH7: FALSE | AI7: FALSE | AJ7: FALSE | AK7: FALSE | AL7: FALSE | AM7: FALSE | AN7: FALSE
D8: Debt Repayment Phase | E8: =E24 -> 20 | F8: Years | I8: =AND(I5>$E$6,I5<=$E$8) -> FALSE | J8: =AND(J5>$E$6,J5<=$E$8) -> TRUE | K8: TRUE | L8: TRUE | M8: TRUE | N8: TRUE | O8: TRUE | P8: TRUE | Q8: TRUE | R8: TRUE | S8: TRUE | T8: TRUE | U8: TRUE | V8: TRUE | W8: TRUE | X8: TRUE | Y8: TRUE | Z8: TRUE | AA8: TRUE | AB8: TRUE | AC8: TRUE | AD8: FALSE | AE8: FALSE | AF8: FALSE | AG8: FALSE | AH8: FALSE | AI8: FALSE | AJ8: FALSE | AK8: FALSE | AL8: FALSE | AM8: FALSE | AN8: FALSE
B9: Assumptions
C10: Timing
D11: Construction Period | E11: =LCOs!F10 -> 1 | F11: Years
D12: Operation Period | E12: =LCOs!F12 -> 24 | F12: Years
D13: Project Lifetime | E13: =LCOs!F14 -> 25 | F13: Years
C15: Tax and Depreciation
D16: Depreciation Life | E16: =E13 -> 25
D17: Declining Factor (1-SL) | E17: =LCOs!F19 -> 1
D18: Tax Rate | E18: =LCOs!F20 -> 0
D19: Inflation Rate | E19: =LCOs!F17 -> 0
C21: Debt & Equity Financing
D22: Debt Percent | E22: 0.7 | F22: %
D23: Debt Commitment | E23: =Results!R31*E22 -> 234383234.8 | F23: USD
D24: Debt Tenor | E24: 20 | F24: Years
D25: Interest Rate | E25: 0.062 | F25: %
D27: Cost of Equity | E27: 0.12 | F27: %
D28: Cost of Debt | E28: =E25 -> 0.062 | F28: %
D29: Equity Amount | E29: =1-E22 -> 0.3 | F29: %
D30: Equity Commitment | E30: =Results!R31*'Fin. Model NH3'!E29 -> 100449957.8 | F30: USD
D31: WACC - Nominal | E31: =E29*E27+E28*E22 -> 0.0794 | F31: %
D32: WACC - Real Adj. by Inflation | E32: =(1+E31)/(1+E19)-1 -> 0.0794 | F32: %
B35: Operation Analysis for Ammonia | G35: Check
D37: Inflation Index | E37: Factor | F37: =E19 -> 0 | H37: 1 | I37: =H37 -> 1 | J37: =I37*(1+$F$37) -> 1 | K37: 1 | L37: 1 | M37: 1 | N37: 1 | O37: 1 | P37: 1 | Q37: 1 | R37: 1 | S37: 1 | T37: 1 | U37: 1 | V37: 1 | W37: 1 | X37: 1 | Y37: 1 | Z37: 1 | AA37: 1 | AB37: 1 | AC37: 1 | AD37: 1 | AE37: 1 | AF37: 1 | AG37: 1 | AH37: 1 | AI37: 1 | AJ37: 1 | AK37: 1 | AL37: 1 | AM37: 1 | AN37: 1
D39: Total Ammonia Production | E39: Tn/Yr | F39: =LCOs!F220 -> 326292.48 | G39: =LCOs!F172 -> 326292.48 | I39: =$F$39*I7 -> 0 | J39: 326292.48 | K39: 326292.48 | L39: 326292.48 | M39: 326292.48 | N39: 326292.48 | O39: 326292.48 | P39: 326292.48 | Q39: 326292.48 | R39: 326292.48 | S39: 326292.48 | T39: 326292.48 | U39: 326292.48 | V39: 326292.48 | W39: 326292.48 | X39: 326292.48 | Y39: 326292.48 | Z39: 326292.48 | AA39: 326292.48 | AB39: 326292.48 | AC39: 326292.48 | AD39: 326292.48 | AE39: 326292.48 | AF39: 326292.48 | AG39: 326292.48 | AH39: 0 | AI39: 0 | AJ39: 0 | AK39: 0 | AL39: 0 | AM39: 0 | AN39: 0
D40: Revenues | E40: USD/Yr | F40: =LCOs!H221 -> 512.4429956 | I40: =I39*$F$40 -> 0 | J40: 167206295.9 | K40: 167206295.9 | L40: 167206295.9 | M40: 167206295.9 | N40: 167206295.9 | O40: 167206295.9 | P40: 167206295.9 | Q40: 167206295.9 | R40: 167206295.9 | S40: 167206295.9 | T40: 167206295.9 | U40: 167206295.9 | V40: 167206295.9 | W40: 167206295.9 | X40: 167206295.9 | Y40: 167206295.9 | Z40: 167206295.9 | AA40: 167206295.9 | AB40: 167206295.9 | AC40: 167206295.9 | AD40: 167206295.9 | AE40: 167206295.9 | AF40: 167206295.9 | AG40: 167206295.9 | AH40: 0 | AI40: 0 | AJ40: 0 | AK40: 0 | AL40: 0 | AM40: 0 | AN40: 0
D42: Total Hydrogen Consumption | E42: Tn/Yr | F42: =LCOs!F137 -> 60068.57143 | I42: =$F$42*I7 -> 0 | J42: 60068.57143 | K42: 60068.57143 | L42: 60068.57143 | M42: 60068.57143 | N42: 60068.57143 | O42: 60068.57143 | P42: 60068.57143 | Q42: 60068.57143 | R42: 60068.57143 | S42: 60068.57143 | T42: 60068.57143 | U42: 60068.57143 | V42: 60068.57143 | W42: 60068.57143 | X42: 60068.57143 | Y42: 60068.57143 | Z42: 60068.57143 | AA42: 60068.57143 | AB42: 60068.57143 | AC42: 60068.57143 | AD42: 60068.57143 | AE42: 60068.57143 | AF42: 60068.57143 | AG42: 60068.57143 | AH42: 0 | AI42: 0 | AJ42: 0 | AK42: 0 | AL42: 0 | AM42: 0 | AN42: 0
D43: Hydrogen Expense | E43: USD | F43: =LCOs!H110 -> 2.018638274 | G43: =LCOs!F183 -> 121256717.4 | H43: =G43=J43 -> TRUE | I43: =I42*$F$43*1000 -> 0 | J43: 121256717.4 | K43: 121256717.4 | L43: 121256717.4 | M43: 121256717.4 | N43: 121256717.4 | O43: 121256717.4 | P43: 121256717.4 | Q43: 121256717.4 | R43: 121256717.4 | S43: 121256717.4 | T43: 121256717.4 | U43: 121256717.4 | V43: 121256717.4 | W43: 121256717.4 | X43: 121256717.4 | Y43: 121256717.4 | Z43: 121256717.4 | AA43: 121256717.4 | AB43: 121256717.4 | AC43: 121256717.4 | AD43: 121256717.4 | AE43: 121256717.4 | AF43: 121256717.4 | AG43: 121256717.4 | AH43: 0 | AI43: 0 | AJ43: 0 | AK43: 0 | AL43: 0 | AM43: 0 | AN43: 0
D45: Total Nitrogen Consumption | E45: Tn/Yr | F45: =LCOs!F138 -> 276315.4286 | I45: =$F$45*I7 -> 0 | J45: 276315.4286 | K45: 276315.4286 | L45: 276315.4286 | M45: 276315.4286 | N45: 276315.4286 | O45: 276315.4286 | P45: 276315.4286 | Q45: 276315.4286 | R45: 276315.4286 | S45: 276315.4286 | T45: 276315.4286 | U45: 276315.4286 | V45: 276315.4286 | W45: 276315.4286 | X45: 276315.4286 | Y45: 276315.4286 | Z45: 276315.4286 | AA45: 276315.4286 | AB45: 276315.4286 | AC45: 276315.4286 | AD45: 276315.4286 | AE45: 276315.4286 | AF45: 276315.4286 | AG45: 276315.4286 | AH45: 0 | AI45: 0 | AJ45: 0 | AK45: 0 | AL45: 0 | AM45: 0 | AN45: 0
D46: Nitrogen Expense | E46: USD | F46: =LCOs!F134 -> 27.00907005 | G46: =LCOs!F184 -> 7463022.765 | H46: =G46=J46 -> TRUE | I46: =I45*$F$46 -> 0 | J46: 7463022.765 | K46: 7463022.765 | L46: 7463022.765 | M46: 7463022.765 | N46: 7463022.765 | O46: 7463022.765 | P46: 7463022.765 | Q46: 7463022.765 | R46: 7463022.765 | S46: 7463022.765 | T46: 7463022.765 | U46: 7463022.765 | V46: 7463022.765 | W46: 7463022.765 | X46: 7463022.765 | Y46: 7463022.765 | Z46: 7463022.765 | AA46: 7463022.765 | AB46: 7463022.765 | AC46: 7463022.765 | AD46: 7463022.765 | AE46: 7463022.765 | AF46: 7463022.765 | AG46: 7463022.765 | AH46: 0 | AI46: 0 | AJ46: 0 | AK46: 0 | AL46: 0 | AM46: 0 | AN46: 0
D48: Total Gas Compression Expense | E48: USD/Yr | F48: =LCOs!F165 -> 25.8661121 | G48: =LCOs!F185 -> 8439917.865 | H48: =J48=G48 -> TRUE | I48: =$F$48*I39 -> 0 | J48: 8439917.865 | K48: 8439917.865 | L48: 8439917.865 | M48: 8439917.865 | N48: 8439917.865 | O48: 8439917.865 | P48: 8439917.865 | Q48: 8439917.865 | R48: 8439917.865 | S48: 8439917.865 | T48: 8439917.865 | U48: 8439917.865 | V48: 8439917.865 | W48: 8439917.865 | X48: 8439917.865 | Y48: 8439917.865 | Z48: 8439917.865 | AA48: 8439917.865 | AB48: 8439917.865 | AC48: 8439917.865 | AD48: 8439917.865 | AE48: 8439917.865 | AF48: 8439917.865 | AG48: 8439917.865 | AH48: 0 | AI48: 0 | AJ48: 0 | AK48: 0 | AL48: 0 | AM48: 0 | AN48: 0
D50: Total Power Consumption | E50: MWh/Yr | F50: =LCOs!F179 -> 261033.984 | I50: =$F$50*I7 -> 0 | J50: 261033.984 | K50: 261033.984 | L50: 261033.984 | M50: 261033.984 | N50: 261033.984 | O50: 261033.984 | P50: 261033.984 | Q50: 261033.984 | R50: 261033.984 | S50: 261033.984 | T50: 261033.984 | U50: 261033.984 | V50: 261033.984 | W50: 261033.984 | X50: 261033.984 | Y50: 261033.984 | Z50: 261033.984 | AA50: 261033.984 | AB50: 261033.984 | AC50: 261033.984 | AD50: 261033.984 | AE50: 261033.984 | AF50: 261033.984 | AG50: 261033.984 | AH50: 0 | AI50: 0 | AJ50: 0 | AK50: 0 | AL50: 0 | AM50: 0 | AN50: 0
D51: Power Expense | E51: USD | F51: =LCOs!F32 -> 24.93 | G51: =LCOs!F181 -> 6507577.221 | H51: =J51=G51 -> TRUE | I51: =I50*$F$51 -> 0 | J51: 6507577.221 | K51: 6507577.221 | L51: 6507577.221 | M51: 6507577.221 | N51: 6507577.221 | O51: 6507577.221 | P51: 6507577.221 | Q51: 6507577.221 | R51: 6507577.221 | S51: 6507577.221 | T51: 6507577.221 | U51: 6507577.221 | V51: 6507577.221 | W51: 6507577.221 | X51: 6507577.221 | Y51: 6507577.221 | Z51: 6507577.221 | AA51: 6507577.221 | AB51: 6507577.221 | AC51: 6507577.221 | AD51: 6507577.221 | AE51: 6507577.221 | AF51: 6507577.221 | AG51: 6507577.221 | AH51: 0 | AI51: 0 | AJ51: 0 | AK51: 0 | AL51: 0 | AM51: 0 | AN51: 0
D53: Operation Adj. by Inflation | E53: USD | F53: =LCOs!F175 -> 2922000 | G53: =LCOs!F176 -> 2922000 | H53: =J53=G53 -> TRUE | I53: =I37*$F$53*I7 -> 0 | J53: 2922000 | K53: 2922000 | L53: 2922000 | M53: 2922000 | N53: 2922000 | O53: 2922000 | P53: 2922000 | Q53: 2922000 | R53: 2922000 | S53: 2922000 | T53: 2922000 | U53: 2922000 | V53: 2922000 | W53: 2922000 | X53: 2922000 | Y53: 2922000 | Z53: 2922000 | AA53: 2922000 | AB53: 2922000 | AC53: 2922000 | AD53: 2922000 | AE53: 2922000 | AF53: 2922000 | AG53: 2922000 | AH53: 0 | AI53: 0 | AJ53: 0 | AK53: 0 | AL53: 0 | AM53: 0 | AN53: 0
D55: EBITDA | E55: USD | I55: =I40-I43-I46-I48-I51-I53 -> 0 | J55: =J40-J43-J46-J48-J51-J53 -> 20617060.66 | K55: 20617060.66 | L55: 20617060.66 | M55: 20617060.66 | N55: 20617060.66 | O55: 20617060.66 | P55: 20617060.66 | Q55: 20617060.66 | R55: 20617060.66 | S55: 20617060.66 | T55: 20617060.66 | U55: 20617060.66 | V55: 20617060.66 | W55: 20617060.66 | X55: 20617060.66 | Y55: 20617060.66 | Z55: 20617060.66 | AA55: 20617060.66 | AB55: 20617060.66 | AC55: 20617060.66 | AD55: 20617060.66 | AE55: 20617060.66 | AF55: 20617060.66 | AG55: 20617060.66 | AH55: 0 | AI55: 0 | AJ55: 0 | AK55: 0 | AL55: 0 | AM55: 0 | AN55: 0
D57: Construction Expenditures | E57: USD | F57: =LCOs!F293 -> 194800000 | G57: Period | H57: =E5 -> 1 | I57: =$F$57/$H$57*I6 -> 194800000 | J57: 0 | K57: 0 | L57: 0 | M57: 0 | N57: 0 | O57: 0 | P57: 0 | Q57: 0 | R57: 0 | S57: 0 | T57: 0 | U57: 0 | V57: 0 | W57: 0 | X57: 0 | Y57: 0 | Z57: 0 | AA57: 0 | AB57: 0 | AC57: 0 | AD57: 0 | AE57: 0 | AF57: 0 | AG57: 0 | AH57: 0 | AI57: 0 | AJ57: 0 | AK57: 0 | AL57: 0 | AM57: 0 | AN57: 0
D58: Replacements | E58: USD | F58: =LCOs!F194 -> 1 | I58: =_xlfn.XLOOKUP(I5,LCOs!$F$241:$F$247,LCOs!$H$241:$H$247,0,0)*I37*$F$58 -> 0 | J58: =_xlfn.XLOOKUP(J5,LCOs!$F$241:$F$247,LCOs!$H$241:$H$247,0,0)*J37*$F$58 -> 0 | K58: =_xlfn.XLOOKUP(K5,LCOs!$F$241:$F$247,LCOs!$H$241:$H$247,0,0)*K37*$F$58 -> 0 | L58: =_xlfn.XLOOKUP(L5,LCOs!$F$241:$F$247,LCOs!$H$241:$H$247,0,0)*L37*$F$58 -> 0 | M58: =_xlfn.XLOOKUP(M5,LCOs!$F$241:$F$247,LCOs!$H$241:$H$247,0,0)*M37*$F$58 -> 0 | N58: =_xlfn.XLOOKUP(N5,LCOs!$F$241:$F$247,LCOs!$H$241:$H$247,0,0)*N37*$F$58 -> 0 | O58: =_xlfn.XLOOKUP(O5,LCOs!$F$241:$F$247,LCOs!$H$241:$H$247,0,0)*O37*$F$58 -> 0 | P58: =_xlfn.XLOOKUP(P5,LCOs!$F$241:$F$247,LCOs!$H$241:$H$247,0,0)*P37*$F$58 -> 0 | Q58: =_xlfn.XLOOKUP(Q5,LCOs!$F$241:$F$247,LCOs!$H$241:$H$247,0,0)*Q37*$F$58 -> 0 | R58: =_xlfn.XLOOKUP(R5,LCOs!$F$241:$F$247,LCOs!$H$241:$H$247,0,0)*R37*$F$58 -> 0 | S58: =_xlfn.XLOOKUP(S5,LCOs!$F$241:$F$247,LCOs!$H$241:$H$247,0,0)*S37*$F$58 -> 0 | T58: =_xlfn.XLOOKUP(T5,LCOs!$F$241:$F$247,LCOs!$H$241:$H$247,0,0)*T37*$F$58 -> 0 | U58: =_xlfn.XLOOKUP(U5,LCOs!$F$241:$F$247,LCOs!$H$241:$H$247,0,0)*U37*$F$58 -> 58440000 | V58: =_xlfn.XLOOKUP(V5,LCOs!$F$241:$F$247,LCOs!$H$241:$H$247,0,0)*V37*$F$58 -> 0 | W58: =_xlfn.XLOOKUP(W5,LCOs!$F$241:$F$247,LCOs!$H$241:$H$247,0,0)*W37*$F$58 -> 0 | X58: =_xlfn.XLOOKUP(X5,LCOs!$F$241:$F$247,LCOs!$H$241:$H$247,0,0)*X37*$F$58 -> 0 | Y58: =_xlfn.XLOOKUP(Y5,LCOs!$F$241:$F$247,LCOs!$H$241:$H$247,0,0)*Y37*$F$58 -> 0 | Z58: =_xlfn.XLOOKUP(Z5,LCOs!$F$241:$F$247,LCOs!$H$241:$H$247,0,0)*Z37*$F$58 -> 0 | AA58: =_xlfn.XLOOKUP(AA5,LCOs!$F$241:$F$247,LCOs!$H$241:$H$247,0,0)*AA37*$F$58 -> 0 | AB58: =_xlfn.XLOOKUP(AB5,LCOs!$F$241:$F$247,LCOs!$H$241:$H$247,0,0)*AB37*$F$58 -> 0 | AC58: =_xlfn.XLOOKUP(AC5,LCOs!$F$241:$F$247,LCOs!$H$241:$H$247,0,0)*AC37*$F$58 -> 0 | AD58: =_xlfn.XLOOKUP(AD5,LCOs!$F$241:$F$247,LCOs!$H$241:$H$247,0,0)*AD37*$F$58 -> 0 | AE58: =_xlfn.XLOOKUP(AE5,LCOs!$F$241:$F$247,LCOs!$H$241:$H$247,0,0)*AE37*$F$58 -> 0 | AF58: =_xlfn.XLOOKUP(AF5,LCOs!$F$241:$F$247,LCOs!$H$241:$H$247,0,0)*AF37*$F$58 -> 0 | AG58: =_xlfn.XLOOKUP(AG5,LCOs!$F$241:$F$247,LCOs!$H$241:$H$247,0,0)*AG37*$F$58 -> 0 | AH58: =_xlfn.XLOOKUP(AH5,LCOs!$F$241:$F$247,LCOs!$H$241:$H$247,0,0)*AH37*$F$58 -> 0 | AI58: =_xlfn.XLOOKUP(AI5,LCOs!$F$241:$F$247,LCOs!$H$241:$H$247,0,0)*AI37*$F$58 -> 0 | AJ58: =_xlfn.XLOOKUP(AJ5,LCOs!$F$241:$F$247,LCOs!$H$241:$H$247,0,0)*AJ37*$F$58 -> 0 | AK58: =_xlfn.XLOOKUP(AK5,LCOs!$F$241:$F$247,LCOs!$H$241:$H$247,0,0)*AK37*$F$58 -> 0 | AL58: =_xlfn.XLOOKUP(AL5,LCOs!$F$241:$F$247,LCOs!$H$241:$H$247,0,0)*AL37*$F$58 -> 0 | AM58: =_xlfn.XLOOKUP(AM5,LCOs!$F$241:$F$247,LCOs!$H$241:$H$247,0,0)*AM37*$F$58 -> 0 | AN58: =_xlfn.XLOOKUP(AN5,LCOs!$F$241:$F$247,LCOs!$H$241:$H$247,0,0)*AN37*$F$58 -> 0
D59: Pre-Tax Cash Flow | E59: USD | I59: =I55-I57-I58 -> -194800000 | J59: =J55-J57-J58 -> 20617060.66 | K59: 20617060.66 | L59: 20617060.66 | M59: 20617060.66 | N59: 20617060.66 | O59: 20617060.66 | P59: 20617060.66 | Q59: 20617060.66 | R59: 20617060.66 | S59: 20617060.66 | T59: 20617060.66 | U59: -37822939.34 | V59: 20617060.66 | W59: 20617060.66 | X59: 20617060.66 | Y59: 20617060.66 | Z59: 20617060.66 | AA59: 20617060.66 | AB59: 20617060.66 | AC59: 20617060.66 | AD59: 20617060.66 | AE59: 20617060.66 | AF59: 20617060.66 | AG59: 20617060.66 | AH59: 0 | AI59: 0 | AJ59: 0 | AK59: 0 | AL59: 0 | AM59: 0 | AN59: 0
D60: IRR | E60: % | F60: =IRR(I59:AN59) -> 0.0794
D62: Financing Cost Balance
D63: Opening Balance | I63: =H66 -> 0 | J63: =I66 -> 194800000 | K63: 194800000 | L63: 194800000 | M63: 194800000 | N63: 194800000 | O63: 194800000 | P63: 194800000 | Q63: 194800000 | R63: 194800000 | S63: 194800000 | T63: 194800000 | U63: 194800000 | V63: 194800000 | W63: 194800000 | X63: 194800000 | Y63: 194800000 | Z63: 194800000 | AA63: 194800000 | AB63: 194800000 | AC63: 194800000 | AD63: 194800000 | AE63: 194800000 | AF63: 194800000 | AG63: 194800000 | AH63: 194800000 | AI63: 194800000 | AJ63: 194800000 | AK63: 194800000 | AL63: 194800000 | AM63: 194800000 | AN63: 194800000
D64: Add: Financing Cost | F64: =LCOs!F27 -> 0.0794 | I64: =I63*$F$64*I6 -> 0 | J64: =J63*$F$64*J6 -> 0 | K64: 0 | L64: 0 | M64: 0 | N64: 0 | O64: 0 | P64: 0 | Q64: 0 | R64: 0 | S64: 0 | T64: 0 | U64: 0 | V64: 0 | W64: 0 | X64: 0 | Y64: 0 | Z64: 0 | AA64: 0 | AB64: 0 | AC64: 0 | AD64: 0 | AE64: 0 | AF64: 0 | AG64: 0 | AH64: 0 | AI64: 0 | AJ64: 0 | AK64: 0 | AL64: 0 | AM64: 0 | AN64: 0
D65: Add: Construction | I65: =I57 -> 194800000 | J65: =J57 -> 0 | K65: 0 | L65: 0 | M65: 0 | N65: 0 | O65: 0 | P65: 0 | Q65: 0 | R65: 0 | S65: 0 | T65: 0 | U65: 0 | V65: 0 | W65: 0 | X65: 0 | Y65: 0 | Z65: 0 | AA65: 0 | AB65: 0 | AC65: 0 | AD65: 0 | AE65: 0 | AF65: 0 | AG65: 0 | AH65: 0 | AI65: 0 | AJ65: 0 | AK65: 0 | AL65: 0 | AM65: 0 | AN65: 0
D66: Closing Balance | I66: =I63+I64+I65 -> 194800000 | J66: =J63+J64+J65 -> 194800000 | K66: 194800000 | L66: 194800000 | M66: 194800000 | N66: 194800000 | O66: 194800000 | P66: 194800000 | Q66: 194800000 | R66: 194800000 | S66: 194800000 | T66: 194800000 | U66: 194800000 | V66: 194800000 | W66: 194800000 | X66: 194800000 | Y66: 194800000 | Z66: 194800000 | AA66: 194800000 | AB66: 194800000 | AC66: 194800000 | AD66: 194800000 | AE66: 194800000 | AF66: 194800000 | AG66: 194800000 | AH66: 194800000 | AI66: 194800000 | AJ66: 194800000 | AK66: 194800000 | AL66: 194800000 | AM66: 194800000 | AN66: 194800000
D68: Financing Cost Adder | E68: USD | F68: =AN66 -> 194800000 | G68: =F68/F57 -> 1
D71: Initial Depreciation Period | E71: Flag | F71: 1 | G71: =LCOs!F242 -> 12 | H71: =SUM(I71:AN71) -> 12 | I71: =AND(I$5>=$F71,I$5<=$G71)*1 -> 0 | J71: 1 | K71: 1 | L71: 1 | M71: 1 | N71: 1 | O71: 1 | P71: 1 | Q71: 1 | R71: 1 | S71: =AND(S$5>=$F71,S$5<=$G71)*1 -> 1 | T71: 1 | U71: 1 | V71: 0 | W71: 0 | X71: 0 | Y71: 0 | Z71: 0 | AA71: 0 | AB71: 0 | AC71: =AND(AC$5>=$F71,AC$5<=$G71)*1 -> 0 | AD71: 0 | AE71: 0 | AF71: 0 | AG71: 0 | AH71: 0 | AI71: 0 | AJ71: 0 | AK71: 0 | AL71: 0 | AM71: 0 | AN71: 0
D72: Second Depreciation Period | E72: Flag | F72: =G71+1 -> 13 | G72: =F72+G71-1 -> 24 | H72: =SUM(I72:AN72) -> 12 | I72: 0 | J72: 0 | K72: 0 | L72: 0 | M72: 0 | N72: 0 | O72: 0 | P72: 0 | Q72: 0 | R72: 0 | S72: 0 | T72: 0 | U72: 0 | V72: 1 | W72: 1 | X72: 1 | Y72: 1 | Z72: 1 | AA72: 1 | AB72: 1 | AC72: 1 | AD72: 1 | AE72: 1 | AF72: 1 | AG72: 1 | AH72: 0 | AI72: 0 | AJ72: 0 | AK72: 0 | AL72: 0 | AM72: 0 | AN72: 0
D74: Long-term Portion Depreciation Base | E74: USD | F74: =LCOs!F199 -> 0.7 | G74: =F68*F74 -> 136360000 | I74: =$F$74*$G$74*I7 -> 0 | J74: =$F$74*$G$74*J7 -> 95452000 | K74: 95452000 | L74: 95452000 | M74: 95452000 | N74: 95452000 | O74: 95452000 | P74: 95452000 | Q74: 95452000 | R74: 95452000 | S74: 95452000 | T74: 95452000 | U74: 95452000 | V74: 95452000 | W74: 95452000 | X74: 95452000 | Y74: 95452000 | Z74: 95452000 | AA74: 95452000 | AB74: 95452000 | AC74: 95452000 | AD74: 95452000 | AE74: 95452000 | AF74: 95452000 | AG74: 95452000 | AH74: 0 | AI74: 0 | AJ74: 0 | AK74: 0 | AL74: 0 | AM74: 0 | AN74: 0
D75: Replacement Portion Depreciation Base | E75: USD | F75: =1-F74 -> 0.3 | G75: =F68*F75 -> 58440000 | I75: =$G$75*$F$75*I71 -> 0 | J75: =$G$75*$F$75*J71 -> 17532000 | K75: 17532000 | L75: 17532000 | M75: 17532000 | N75: 17532000 | O75: 17532000 | P75: 17532000 | Q75: 17532000 | R75: 17532000 | S75: 17532000 | T75: 17532000 | U75: 17532000 | V75: 0 | W75: 0 | X75: 0 | Y75: 0 | Z75: 0 | AA75: 0 | AB75: 0 | AC75: 0 | AD75: 0 | AE75: 0 | AF75: 0 | AG75: 0 | AH75: 0 | AI75: 0 | AJ75: 0 | AK75: 0 | AL75: 0 | AM75: 0 | AN75: 0
D76: First Replacement Depreciation Base | E76: USD | G76: =G75*G68 -> 58440000 | I76: =$G$76*I72 -> 0 | J76: =$G$76*J72 -> 0 | K76: 0 | L76: 0 | M76: 0 | N76: 0 | O76: 0 | P76: 0 | Q76: 0 | R76: 0 | S76: 0 | T76: 0 | U76: 0 | V76: 58440000 | W76: 58440000 | X76: 58440000 | Y76: 58440000 | Z76: 58440000 | AA76: 58440000 | AB76: 58440000 | AC76: 58440000 | AD76: 58440000 | AE76: 58440000 | AF76: 58440000 | AG76: 58440000 | AH76: 0 | AI76: 0 | AJ76: 0 | AK76: 0 | AL76: 0 | AM76: 0 | AN76: 0
D78: Tax Depreciation on Long-term Base Portion | E78: USD | F78: =LCOs!F12 -> 24 | G78: =1/F78 -> 0.04166666667 | I78: =I74*$G$78 -> 0 | J78: =J74*$G$78 -> 3977166.667 | K78: 3977166.667 | L78: 3977166.667 | M78: 3977166.667 | N78: 3977166.667 | O78: 3977166.667 | P78: 3977166.667 | Q78: 3977166.667 | R78: 3977166.667 | S78: 3977166.667 | T78: 3977166.667 | U78: 3977166.667 | V78: 3977166.667 | W78: 3977166.667 | X78: 3977166.667 | Y78: 3977166.667 | Z78: 3977166.667 | AA78: 3977166.667 | AB78: 3977166.667 | AC78: 3977166.667 | AD78: 3977166.667 | AE78: 3977166.667 | AF78: 3977166.667 | AG78: 3977166.667 | AH78: 0 | AI78: 0 | AJ78: 0 | AK78: 0 | AL78: 0 | AM78: 0 | AN78: 0
D79: Replacement Portion Depreciation | E79: USD | F79: =H71 -> 12 | G79: =1/F79 -> 0.08333333333 | I79: =$G$79*I75 -> 0 | J79: =$G$79*J75 -> 1461000 | K79: 1461000 | L79: 1461000 | M79: 1461000 | N79: 1461000 | O79: 1461000 | P79: 1461000 | Q79: 1461000 | R79: 1461000 | S79: 1461000 | T79: 1461000 | U79: 1461000 | V79: 0 | W79: 0 | X79: 0 | Y79: 0 | Z79: 0 | AA79: 0 | AB79: 0 | AC79: 0 | AD79: 0 | AE79: 0 | AF79: 0 | AG79: 0 | AH79: 0 | AI79: 0 | AJ79: 0 | AK79: 0 | AL79: 0 | AM79: 0 | AN79: 0
D80: First Replacement Depreciation | E80: USD | F80: =H72 -> 12 | G80: =1/F80 -> 0.08333333333 | I80: =$G$80*I76 -> 0 | J80: =$G$80*J76 -> 0 | K80: 0 | L80: 0 | M80: 0 | N80: 0 | O80: 0 | P80: 0 | Q80: 0 | R80: 0 | S80: 0 | T80: 0 | U80: 0 | V80: 4870000 | W80: 4870000 | X80: 4870000 | Y80: 4870000 | Z80: 4870000 | AA80: 4870000 | AB80: 4870000 | AC80: 4870000 | AD80: 4870000 | AE80: 4870000 | AF80: 4870000 | AG80: 4870000 | AH80: 0 | AI80: 0 | AJ80: 0 | AK80: 0 | AL80: 0 | AM80: 0 | AN80: 0
D82: Total Depreciation | E82: USD | F82: =NPV(F91,I82:AN82) -> 62856318.2 | I82: =SUM(I78:I80) -> 0 | J82: =SUM(J78:J80) -> 5438166.667 | K82: 5438166.667 | L82: 5438166.667 | M82: 5438166.667 | N82: 5438166.667 | O82: 5438166.667 | P82: 5438166.667 | Q82: 5438166.667 | R82: 5438166.667 | S82: 5438166.667 | T82: 5438166.667 | U82: 5438166.667 | V82: 8847166.667 | W82: 8847166.667 | X82: 8847166.667 | Y82: 8847166.667 | Z82: 8847166.667 | AA82: 8847166.667 | AB82: 8847166.667 | AC82: 8847166.667 | AD82: 8847166.667 | AE82: 8847166.667 | AF82: 8847166.667 | AG82: 8847166.667 | AH82: 0 | AI82: 0 | AJ82: 0 | AK82: 0 | AL82: 0 | AM82: 0 | AN82: 0
D84: EBIT | E84: USD | I84: =I55-I82 -> 0 | J84: =J55-J82 -> 15178894 | K84: 15178894 | L84: 15178894 | M84: 15178894 | N84: 15178894 | O84: 15178894 | P84: 15178894 | Q84: 15178894 | R84: 15178894 | S84: 15178894 | T84: 15178894 | U84: 15178894 | V84: 11769894 | W84: 11769894 | X84: 11769894 | Y84: 11769894 | Z84: 11769894 | AA84: 11769894 | AB84: 11769894 | AC84: 11769894 | AD84: 11769894 | AE84: 11769894 | AF84: 11769894 | AG84: 11769894 | AH84: 0 | AI84: 0 | AJ84: 0 | AK84: 0 | AL84: 0 | AM84: 0 | AN84: 0
D85: Taxes | E85: USD | F85: =LCOs!F20 -> 0 | I85: =I84*$F$85 -> 0 | J85: =J84*$F$85 -> 0 | K85: 0 | L85: 0 | M85: 0 | N85: 0 | O85: 0 | P85: 0 | Q85: 0 | R85: 0 | S85: 0 | T85: 0 | U85: 0 | V85: 0 | W85: 0 | X85: 0 | Y85: 0 | Z85: 0 | AA85: 0 | AB85: 0 | AC85: 0 | AD85: 0 | AE85: 0 | AF85: 0 | AG85: 0 | AH85: 0 | AI85: 0 | AJ85: 0 | AK85: 0 | AL85: 0 | AM85: 0 | AN85: 0
D86: After-tax Cash Flow | E86: USD | G86: =SUM(I86:AN86) -> 241569455.9 | I86: =I59-I85 -> -194800000 | J86: =J59-J85 -> 20617060.66 | K86: 20617060.66 | L86: 20617060.66 | M86: 20617060.66 | N86: 20617060.66 | O86: 20617060.66 | P86: 20617060.66 | Q86: 20617060.66 | R86: 20617060.66 | S86: 20617060.66 | T86: 20617060.66 | U86: -37822939.34 | V86: 20617060.66 | W86: 20617060.66 | X86: 20617060.66 | Y86: 20617060.66 | Z86: 20617060.66 | AA86: 20617060.66 | AB86: 20617060.66 | AC86: 20617060.66 | AD86: 20617060.66 | AE86: 20617060.66 | AF86: 20617060.66 | AG86: 20617060.66 | AH86: 0 | AI86: 0 | AJ86: 0 | AK86: 0 | AL86: 0 | AM86: 0 | AN86: 0
D88: Pre-Tax IRR | E88: % | F88: =IRR(I59:AN59) -> 0.0794
D89: Pre-Tax NPV | E89: USD | F89: =NPV(E31,I59:AN59) -> 1.988788711e-07
D90: After-tax IRR | E90: % | F90: =IRR(I86:AN86) -> 0.0794
D91: Target IRR | E91: % | F91: =LCOs!F26 -> 0.0794

Sheet Consolidated
D2: Important Outputs ---> | E2: Pre Tax IRR | F2: =F68 ->  | I2: Construction | J2: =LCOs!$F$194 -> 1
E3: After Tax IRR
E4: Equity IRR
D5: Construction Period | E5: =E11 -> 1 | F5: =F11 -> Years | I5: =-E5+1 -> 0 | J5: =I5+1 -> 1 | K5: =J5+1 -> 2 | L5: 3 | M5: 4 | N5: 5 | O5: 6 | P5: 7 | Q5: 8 | R5: 9 | S5: 10 | T5: 11 | U5: 12 | V5: 13 | W5: 14 | X5: 15 | Y5: 16 | Z5: 17 | AA5: 18 | AB5: 19 | AC5: 20 | AD5: 21 | AE5: 22 | AF5: 23 | AG5: 24 | AH5: 25 | AI5: 26 | AJ5: 27 | AK5: 28 | AL5: 29 | AM5: 30 | AN5: 31
D6: Construction Phase | E6: 0 | F6: Flag | I6: =I5<=$E$6 -> TRUE | J6: =J5<=$E$6 -> FALSE | K6: FALSE | L6: FALSE | M6: FALSE | N6: FALSE | O6: FALSE | P6: FALSE | Q6: FALSE | R6: FALSE | S6: FALSE | T6: FALSE | U6: FALSE | V6: FALSE | W6: FALSE | X6: FALSE | Y6: FALSE | Z6: FALSE | AA6: FALSE | AB6: FALSE | AC6: FALSE | AD6: FALSE | AE6: FALSE | AF6: FALSE | AG6: FALSE | AH6: FALSE | AI6: FALSE | AJ6: FALSE | AK6: FALSE | AL6: FALSE | AM6: FALSE | AN6: FALSE
D7: Operation Phase | E7: =E12 -> 24 | F7: =F12 -> Years | I7: =AND(I5>$E$6,I5<=$E$7) -> FALSE | J7: =AND(J5>$E$6,J5<=$E$7) -> TRUE | K7: TRUE | L7: TRUE | M7: TRUE | N7: TRUE | O7: TRUE | P7: TRUE | Q7: TRUE | R7: TRUE | S7: TRUE | T7: TRUE | U7: TRUE | V7: TRUE | W7: TRUE | X7: TRUE | Y7: TRUE | Z7: TRUE | AA7: TRUE | AB7: TRUE | AC7: TRUE | AD7: TRUE | AE7: TRUE | AF7: TRUE | AG7: TRUE | AH7: FALSE | AI7: FALSE | AJ7: FALSE | AK7: FALSE | AL7: FALSE | AM7: FALSE | AN7: FALSE
D8: Debt Repayment Phase | E8: =#REF! ->  | F8: Years | I8: =AND(I5>$E$6,I5<=$E$8) ->  | J8: =AND(J5>$E$6,J5<=$E$8) -> 
B9: Assumptions
C10: Timing
D11: Construction Period | E11: =LCOs!F10 -> 1 | F11: Years
D12: Operation Period | E12: =LCOs!F12 -> 24 | F12: Years
D13: Project Lifetime | E13: =LCOs!F14 -> 25 | F13: Years
B17: Operation Analysis for Consolidation | G17: Check
C19: Total Revenues
D20: Ammonia Revenues | E20: USD/Yr | I20: =LOOKUP(I5,'Fin. Model NH3'!5:5,'Fin. Model NH3'!40:40) -> 0 | J20: =LOOKUP(J5,'Fin. Model NH3'!5:5,'Fin. Model NH3'!40:40) -> 167206295.9 | K20: =LOOKUP(K5,'Fin. Model NH3'!5:5,'Fin. Model NH3'!40:40) -> 167206295.9 | L20: =LOOKUP(L5,'Fin. Model NH3'!5:5,'Fin. Model NH3'!40:40) -> 167206295.9 | M20: =LOOKUP(M5,'Fin. Model NH3'!5:5,'Fin. Model NH3'!40:40) -> 167206295.9 | N20: =LOOKUP(N5,'Fin. Model NH3'!5:5,'Fin. Model NH3'!40:40) -> 167206295.9 | O20: =LOOKUP(O5,'Fin. Model NH3'!5:5,'Fin. Model NH3'!40:40) -> 167206295.9 | P20: =LOOKUP(P5,'Fin. Model NH3'!5:5,'Fin. Model NH3'!40:40) -> 167206295.9 | Q20: =LOOKUP(Q5,'Fin. Model NH3'!5:5,'Fin. Model NH3'!40:40) -> 167206295.9 | R20: =LOOKUP(R5,'Fin. Model NH3'!5:5,'Fin. Model NH3'!40:40) -> 167206295.9 | S20: =LOOKUP(S5,'Fin. Model NH3'!5:5,'Fin. Model NH3'!40:40) -> 167206295.9 | T20: =LOOKUP(T5,'Fin. Model NH3'!5:5,'Fin. Model NH3'!40:40) -> 167206295.9 | U20: =LOOKUP(U5,'Fin. Model NH3'!5:5,'Fin. Model NH3'!40:40) -> 167206295.9 | V20: =LOOKUP(V5,'Fin. Model NH3'!5:5,'Fin. Model NH3'!40:40) -> 167206295.9 | W20: =LOOKUP(W5,'Fin. Model NH3'!5:5,'Fin. Model NH3'!40:40) -> 167206295.9 | X20: =LOOKUP(X5,'Fin. Model NH3'!5:5,'Fin. Model NH3'!40:40) -> 167206295.9 | Y20: =LOOKUP(Y5,'Fin. Model NH3'!5:5,'Fin. Model NH3'!40:40) -> 167206295.9 | Z20: =LOOKUP(Z5,'Fin. Model NH3'!5:5,'Fin. Model NH3'!40:40) -> 167206295.9 | AA20: =LOOKUP(AA5,'Fin. Model NH3'!5:5,'Fin. Model NH3'!40:40) -> 167206295.9 | AB20: =LOOKUP(AB5,'Fin. Model NH3'!5:5,'Fin. Model NH3'!40:40) -> 167206295.9 | AC20: =LOOKUP(AC5,'Fin. Model NH3'!5:5,'Fin. Model NH3'!40:40) -> 167206295.9 | AD20: =LOOKUP(AD5,'Fin. Model NH3'!5:5,'Fin. Model NH3'!40:40) -> 167206295.9 | AE20: =LOOKUP(AE5,'Fin. Model NH3'!5:5,'Fin. Model NH3'!40:40) -> 167206295.9 | AF20: =LOOKUP(AF5,'Fin. Model NH3'!5:5,'Fin. Model NH3'!40:40) -> 167206295.9 | AG20: =LOOKUP(AG5,'Fin. Model NH3'!5:5,'Fin. Model NH3'!40:40) -> 167206295.9 | AH20: =LOOKUP(AH5,'Fin. Model NH3'!5:5,'Fin. Model NH3'!40:40) -> 0 | AI20: =LOOKUP(AI5,'Fin. Model NH3'!5:5,'Fin. Model NH3'!40:40) -> 0 | AJ20: =LOOKUP(AJ5,'Fin. Model NH3'!5:5,'Fin. Model NH3'!40:40) -> 0 | AK20: =LOOKUP(AK5,'Fin. Model NH3'!5:5,'Fin. Model NH3'!40:40) -> 0 | AL20: =LOOKUP(AL5,'Fin. Model NH3'!5:5,'Fin. Model NH3'!40:40) -> 0 | AM20: =LOOKUP(AM5,'Fin. Model NH3'!5:5,'Fin. Model NH3'!40:40) -> 0 | AN20: =LOOKUP(AN5,'Fin. Model NH3'!5:5,'Fin. Model NH3'!40:40) -> 0
D21: Revenues | E21: USD/Yr | I21: =I20 -> 0 | J21: =J20 -> 167206295.9 | K21: 167206295.9 | L21: 167206295.9 | M21: 167206295.9 | N21: 167206295.9 | O21: 167206295.9 | P21: 167206295.9 | Q21: 167206295.9 | R21: 167206295.9 | S21: 167206295.9 | T21: 167206295.9 | U21: 167206295.9 | V21: 167206295.9 | W21: 167206295.9 | X21: 167206295.9 | Y21: 167206295.9 | Z21: 167206295.9 | AA21: 167206295.9 | AB21: 167206295.9 | AC21: 167206295.9 | AD21: 167206295.9 | AE21: 167206295.9 | AF21: 167206295.9 | AG21: 167206295.9 | AH21: 0 | AI21: 0 | AJ21: 0 | AK21: 0 | AL21: 0 | AM21: 0 | AN21: 0
C23: Total Expense
D24: Total Hydrogen Expense | E24: USD/yr | F24: =LCOs!F137 -> 60068.57143 | I24: =$F$24*I7 -> 0 | J24: 60068.57143 | K24: 60068.57143 | L24: 60068.57143 | M24: 60068.57143 | N24: 60068.57143 | O24: 60068.57143 | P24: 60068.57143 | Q24: 60068.57143 | R24: 60068.57143 | S24: 60068.57143 | T24: 60068.57143 | U24: 60068.57143 | V24: 60068.57143 | W24: 60068.57143 | X24: 60068.57143 | Y24: 60068.57143 | Z24: 60068.57143 | AA24: 60068.57143 | AB24: 60068.57143 | AC24: 60068.57143 | AD24: 60068.57143 | AE24: 60068.57143 | AF24: 60068.57143 | AG24: 60068.57143 | AH24: 0 | AI24: 0 | AJ24: 0 | AK24: 0 | AL24: 0 | AM24: 0 | AN24: 0
D25: Total Compression Expense
D26: Total Separation Expense
D27: Total Nitrogen Operating Expense
D30: EBITDA | E30: USD | I30: =I21-#REF!-#REF!-#REF!-#REF!-#REF! ->  | J30: =J21-#REF!-#REF!-#REF!-#REF!-#REF! ->  | K30: =K21-#REF!-#REF!-#REF!-#REF!-#REF! ->  | L30: =L21-#REF!-#REF!-#REF!-#REF!-#REF! ->  | M30: =M21-#REF!-#REF!-#REF!-#REF!-#REF! ->  | N30: =N21-#REF!-#REF!-#REF!-#REF!-#REF! ->  | O30: =O21-#REF!-#REF!-#REF!-#REF!-#REF! ->  | P30: =P21-#REF!-#REF!-#REF!-#REF!-#REF! ->  | Q30: =Q21-#REF!-#REF!-#REF!-#REF!-#REF! ->  | R30: =R21-#REF!-#REF!-#REF!-#REF!-#REF! ->  | S30: =S21-#REF!-#REF!-#REF!-#REF!-#REF! ->  | T30: =T21-#REF!-#REF!-#REF!-#REF!-#REF! ->  | U30: =U21-#REF!-#REF!-#REF!-#REF!-#REF! ->  | V30: =V21-#REF!-#REF!-#REF!-#REF!-#REF! ->  | W30: =W21-#REF!-#REF!-#REF!-#REF!-#REF! ->  | X30: =X21-#REF!-#REF!-#REF!-#REF!-#REF! ->  | Y30: =Y21-#REF!-#REF!-#REF!-#REF!-#REF! ->  | Z30: =Z21-#REF!-#REF!-#REF!-#REF!-#REF! ->  | AA30: =AA21-#REF!-#REF!-#REF!-#REF!-#REF! ->  | AB30: =AB21-#REF!-#REF!-#REF!-#REF!-#REF! ->  | AC30: =AC21-#REF!-#REF!-#REF!-#REF!-#REF! ->  | AD30: =AD21-#REF!-#REF!-#REF!-#REF!-#REF! ->  | AE30: =AE21-#REF!-#REF!-#REF!-#REF!-#REF! ->  | AF30: =AF21-#REF!-#REF!-#REF!-#REF!-#REF! ->  | AG30: =AG21-#REF!-#REF!-#REF!-#REF!-#REF! ->  | AH30: =AH21-#REF!-#REF!-#REF!-#REF!-#REF! ->  | AI30: =AI21-#REF!-#REF!-#REF!-#REF!-#REF! ->  | AJ30: =AJ21-#REF!-#REF!-#REF!-#REF!-#REF! ->  | AK30: =AK21-#REF!-#REF!-#REF!-#REF!-#REF! ->  | AL30: =AL21-#REF!-#REF!-#REF!-#REF!-#REF! ->  | AM30: =AM21-#REF!-#REF!-#REF!-#REF!-#REF! ->  | AN30: =AN21-#REF!-#REF!-#REF!-#REF!-#REF! -> 
D32: Construction Expenditures - Hydrogen | E32: USD | H32: =E5 -> 1 | I32: =LOOKUP(I5,'Fin. Model Electroyzer'!5:5,'Fin. Model Electroyzer'!58:58) -> 252000000 | J32: =LOOKUP(J5,'Fin. Model Electroyzer'!5:5,'Fin. Model Electroyzer'!58:58) -> 0 | K32: =LOOKUP(K5,'Fin. Model Electroyzer'!5:5,'Fin. Model Electroyzer'!58:58) -> 0 | L32: =LOOKUP(L5,'Fin. Model Electroyzer'!5:5,'Fin. Model Electroyzer'!58:58) -> 0 | M32: =LOOKUP(M5,'Fin. Model Electroyzer'!5:5,'Fin. Model Electroyzer'!58:58) -> 0 | N32: =LOOKUP(N5,'Fin. Model Electroyzer'!5:5,'Fin. Model Electroyzer'!58:58) -> 0 | O32: =LOOKUP(O5,'Fin. Model Electroyzer'!5:5,'Fin. Model Electroyzer'!58:58) -> 0 | P32: =LOOKUP(P5,'Fin. Model Electroyzer'!5:5,'Fin. Model Electroyzer'!58:58) -> 0 | Q32: =LOOKUP(Q5,'Fin. Model Electroyzer'!5:5,'Fin. Model Electroyzer'!58:58) -> 0 | R32: =LOOKUP(R5,'Fin. Model Electroyzer'!5:5,'Fin. Model Electroyzer'!58:58) -> 0 | S32: =LOOKUP(S5,'Fin. Model Electroyzer'!5:5,'Fin. Model Electroyzer'!58:58) -> 0 | T32: =LOOKUP(T5,'Fin. Model Electroyzer'!5:5,'Fin. Model Electroyzer'!58:58) -> 0 | U32: =LOOKUP(U5,'Fin. Model Electroyzer'!5:5,'Fin. Model Electroyzer'!58:58) -> 0 | V32: =LOOKUP(V5,'Fin. Model Electroyzer'!5:5,'Fin. Model Electroyzer'!58:58) -> 0 | W32: =LOOKUP(W5,'Fin. Model Electroyzer'!5:5,'Fin. Model Electroyzer'!58:58) -> 0 | X32: =LOOKUP(X5,'Fin. Model Electroyzer'!5:5,'Fin. Model Electroyzer'!58:58) -> 0 | Y32: =LOOKUP(Y5,'Fin. Model Electroyzer'!5:5,'Fin. Model Electroyzer'!58:58) -> 0 | Z32: =LOOKUP(Z5,'Fin. Model Electroyzer'!5:5,'Fin. Model Electroyzer'!58:58) -> 0 | AA32: =LOOKUP(AA5,'Fin. Model Electroyzer'!5:5,'Fin. Model Electroyzer'!58:58) -> 0 | AB32: =LOOKUP(AB5,'Fin. Model Electroyzer'!5:5,'Fin. Model Electroyzer'!58:58) -> 0 | AC32: =LOOKUP(AC5,'Fin. Model Electroyzer'!5:5,'Fin. Model Electroyzer'!58:58) -> 0 | AD32: =LOOKUP(AD5,'Fin. Model Electroyzer'!5:5,'Fin. Model Electroyzer'!58:58) -> 0 | AE32: =LOOKUP(AE5,'Fin. Model Electroyzer'!5:5,'Fin. Model Electroyzer'!58:58) -> 0 | AF32: =LOOKUP(AF5,'Fin. Model Electroyzer'!5:5,'Fin. Model Electroyzer'!58:58) -> 0 | AG32: =LOOKUP(AG5,'Fin. Model Electroyzer'!5:5,'Fin. Model Electroyzer'!58:58) -> 0 | AH32: =LOOKUP(AH5,'Fin. Model Electroyzer'!5:5,'Fin. Model Electroyzer'!58:58) -> 0 | AI32: =LOOKUP(AI5,'Fin. Model Electroyzer'!5:5,'Fin. Model Electroyzer'!58:58) -> 0 | AJ32: =LOOKUP(AJ5,'Fin. Model Electroyzer'!5:5,'Fin. Model Electroyzer'!58:58) -> 0 | AK32: =LOOKUP(AK5,'Fin. Model Electroyzer'!5:5,'Fin. Model Electroyzer'!58:58) -> 0 | AL32: =LOOKUP(AL5,'Fin. Model Electroyzer'!5:5,'Fin. Model Electroyzer'!58:58) -> 0 | AM32: =LOOKUP(AM5,'Fin. Model Electroyzer'!5:5,'Fin. Model Electroyzer'!58:58) -> 0 | AN32: =LOOKUP(AN5,'Fin. Model Electroyzer'!5:5,'Fin. Model Electroyzer'!58:58) -> 0
D33: Construction Expenditures - Compression
D34: Construction Expenditures - Compression
D35: Construction Expenditures - Nitrogen
D38: Replacements | E38: USD | F38: =LCOs!F194 -> 1 | I38: =_xlfn.XLOOKUP(I5,LCOs!$F$241:$F$247,LCOs!$H$241:$H$247,0,0)*I19*$F$38 -> 0 | J38: =_xlfn.XLOOKUP(J5,LCOs!$F$241:$F$247,LCOs!$H$241:$H$247,0,0)*J19*$F$38 -> 0 | K38: =_xlfn.XLOOKUP(K5,LCOs!$F$241:$F$247,LCOs!$H$241:$H$247,0,0)*K19*$F$38 -> 0 | L38: =_xlfn.XLOOKUP(L5,LCOs!$F$241:$F$247,LCOs!$H$241:$H$247,0,0)*L19*$F$38 -> 0 | M38: =_xlfn.XLOOKUP(M5,LCOs!$F$241:$F$247,LCOs!$H$241:$H$247,0,0)*M19*$F$38 -> 0 | N38: =_xlfn.XLOOKUP(N5,LCOs!$F$241:$F$247,LCOs!$H$241:$H$247,0,0)*N19*$F$38 -> 0 | O38: =_xlfn.XLOOKUP(O5,LCOs!$F$241:$F$247,LCOs!$H$241:$H$247,0,0)*O19*$F$38 -> 0 | P38: =_xlfn.XLOOKUP(P5,LCOs!$F$241:$F$247,LCOs!$H$241:$H$247,0,0)*P19*$F$38 -> 0 | Q38: =_xlfn.XLOOKUP(Q5,LCOs!$F$241:$F$247,LCOs!$H$241:$H$247,0,0)*Q19*$F$38 -> 0 | R38: =_xlfn.XLOOKUP(R5,LCOs!$F$241:$F$247,LCOs!$H$241:$H$247,0,0)*R19*$F$38 -> 0 | S38: =_xlfn.XLOOKUP(S5,LCOs!$F$241:$F$247,LCOs!$H$241:$H$247,0,0)*S19*$F$38 -> 0 | T38: =_xlfn.XLOOKUP(T5,LCOs!$F$241:$F$247,LCOs!$H$241:$H$247,0,0)*T19*$F$38 -> 0 | U38: =_xlfn.XLOOKUP(U5,LCOs!$F$241:$F$247,LCOs!$H$241:$H$247,0,0)*U19*$F$38 -> 0 | V38: =_xlfn.XLOOKUP(V5,LCOs!$F$241:$F$247,LCOs!$H$241:$H$247,0,0)*V19*$F$38 -> 0 | W38: =_xlfn.XLOOKUP(W5,LCOs!$F$241:$F$247,LCOs!$H$241:$H$247,0,0)*W19*$F$38 -> 0 | X38: =_xlfn.XLOOKUP(X5,LCOs!$F$241:$F$247,LCOs!$H$241:$H$247,0,0)*X19*$F$38 -> 0 | Y38: =_xlfn.XLOOKUP(Y5,LCOs!$F$241:$F$247,LCOs!$H$241:$H$247,0,0)*Y19*$F$38 -> 0 | Z38: =_xlfn.XLOOKUP(Z5,LCOs!$F$241:$F$247,LCOs!$H$241:$H$247,0,0)*Z19*$F$38 -> 0 | AA38: =_xlfn.XLOOKUP(AA5,LCOs!$F$241:$F$247,LCOs!$H$241:$H$247,0,0)*AA19*$F$38 -> 0 | AB38: =_xlfn.XLOOKUP(AB5,LCOs!$F$241:$F$247,LCOs!$H$241:$H$247,0,0)*AB19*$F$38 -> 0 | AC38: =_xlfn.XLOOKUP(AC5,LCOs!$F$241:$F$247,LCOs!$H$241:$H$247,0,0)*AC19*$F$38 -> 0 | AD38: =_xlfn.XLOOKUP(AD5,LCOs!$F$241:$F$247,LCOs!$H$241:$H$247,0,0)*AD19*$F$38 -> 0 | AE38: =_xlfn.XLOOKUP(AE5,LCOs!$F$241:$F$247,LCOs!$H$241:$H$247,0,0)*AE19*$F$38 -> 0 | AF38: =_xlfn.XLOOKUP(AF5,LCOs!$F$241:$F$247,LCOs!$H$241:$H$247,0,0)*AF19*$F$38 -> 0 | AG38: =_xlfn.XLOOKUP(AG5,LCOs!$F$241:$F$247,LCOs!$H$241:$H$247,0,0)*AG19*$F$38 -> 0 | AH38: =_xlfn.XLOOKUP(AH5,LCOs!$F$241:$F$247,LCOs!$H$241:$H$247,0,0)*AH19*$F$38 -> 0 | AI38: =_xlfn.XLOOKUP(AI5,LCOs!$F$241:$F$247,LCOs!$H$241:$H$247,0,0)*AI19*$F$38 -> 0 | AJ38: =_xlfn.XLOOKUP(AJ5,LCOs!$F$241:$F$247,LCOs!$H$241:$H$247,0,0)*AJ19*$F$38 -> 0 | AK38: =_xlfn.XLOOKUP(AK5,LCOs!$F$241:$F$247,LCOs!$H$241:$H$247,0,0)*AK19*$F$38 -> 0 | AL38: =_xlfn.XLOOKUP(AL5,LCOs!$F$241:$F$247,LCOs!$H$241:$H$247,0,0)*AL19*$F$38 -> 0 | AM38: =_xlfn.XLOOKUP(AM5,LCOs!$F$241:$F$247,LCOs!$H$241:$H$247,0,0)*AM19*$F$38 -> 0 | AN38: =_xlfn.XLOOKUP(AN5,LCOs!$F$241:$F$247,LCOs!$H$241:$H$247,0,0)*AN19*$F$38 -> 0
D39: Pre-Tax Cash Flow | E39: USD | I39: =I30-I32-I38 ->  | J39: =J30-J32-J38 -> 
D40: IRR | E40: % | F40: =IRR(I39:AN39) -> 
D42: Financing Cost Balance
D43: Opening Balance | I43: =H46 -> 0 | J43: =I46 -> 252000000 | K43: 252000000 | L43: 252000000 | M43: 252000000 | N43: 252000000 | O43: 252000000 | P43: 252000000 | Q43: 252000000 | R43: 252000000 | S43: 252000000 | T43: 252000000 | U43: 252000000 | V43: 252000000 | W43: 252000000 | X43: 252000000 | Y43: 252000000 | Z43: 252000000 | AA43: 252000000 | AB43: 252000000 | AC43: 252000000 | AD43: 252000000 | AE43: 252000000 | AF43: 252000000 | AG43: 252000000 | AH43: 252000000 | AI43: 252000000 | AJ43: 252000000 | AK43: 252000000 | AL43: 252000000 | AM43: 252000000 | AN43: 252000000
D44: Add: Financing Cost | F44: =LCOs!F27 -> 0.0794 | I44: =I43*$F$44*I6 -> 0 | J44: 0 | K44: 0 | L44: 0 | M44: 0 | N44: 0 | O44: 0 | P44: 0 | Q44: 0 | R44: 0 | S44: 0 | T44: 0 | U44: 0 | V44: 0 | W44: 0 | X44: 0 | Y44: 0 | Z44: 0 | AA44: 0 | AB44: 0 | AC44: 0 | AD44: 0 | AE44: 0 | AF44: 0 | AG44: 0 | AH44: 0 | AI44: 0 | AJ44: 0 | AK44: 0 | AL44: 0 | AM44: 0 | AN44: 0
D45: Add: Construction | I45: =I32 -> 252000000 | J45: =J32 -> 0 | K45: 0 | L45: 0 | M45: 0 | N45: 0 | O45: 0 | P45: 0 | Q45: 0 | R45: 0 | S45: 0 | T45: 0 | U45: 0 | V45: 0 | W45: 0 | X45: 0 | Y45: 0 | Z45: 0 | AA45: 0 | AB45: 0 | AC45: 0 | AD45: 0 | AE45: 0 | AF45: 0 | AG45: 0 | AH45: 0 | AI45: 0 | AJ45: 0 | AK45: 0 | AL45: 0 | AM45: 0 | AN45: 0
D46: Closing Balance | I46: =I43+I44+I45 -> 252000000 | J46: =J43+J44+J45 -> 252000000 | K46: 252000000 | L46: 252000000 | M46: 252000000 | N46: 252000000 | O46: 252000000 | P46: 252000000 | Q46: 252000000 | R46: 252000000 | S46: 252000000 | T46: 252000000 | U46: 252000000 | V46: 252000000 | W46: 252000000 | X46: 252000000 | Y46: 252000000 | Z46: 252000000 | AA46: 252000000 | AB46: 252000000 | AC46: 252000000 | AD46: 252000000 | AE46: 252000000 | AF46: 252000000 | AG46: 252000000 | AH46: 252000000 | AI46: 252000000 | AJ46: 252000000 | AK46: 252000000 | AL46: 252000000 | AM46: 252000000 | AN46: 252000000
D48: Financing Cost Adder | E48: USD | F48: =AN46 -> 252000000 | G48: =F48/F32 -> 
D51: Initial Depreciation Period | E51: Flag | F51: 1 | G51: =LCOs!F242 -> 12 | H51: =SUM(I51:AN51) -> 12 | I51: =AND(I$5>=$F51,I$5<=$G51)*1 -> 0 | J51: 1 | K51: 1 | L51: 1 | M51: 1 | N51: 1 | O51: 1 | P51: 1 | Q51: 1 | R51: 1 | S51: 1 | T51: 1 | U51: 1 | V51: 0 | W51: 0 | X51: 0 | Y51: =AND(Y$5>=$F51,Y$5<=$G51)*1 -> 0 | Z51: 0 | AA51: 0 | AB51: 0 | AC51: 0 | AD51: 0 | AE51: 0 | AF51: 0 | AG51: 0 | AH51: 0 | AI51: 0 | AJ51: 0 | AK51: 0 | AL51: 0 | AM51: 0 | AN51: 0
D52: Second Depreciation Period | E52: Flag | F52: =G51+1 -> 13 | G52: =F52+G51-1 -> 24 | H52: =SUM(I52:AN52) -> 12 | I52: 0 | J52: 0 | K52: 0 | L52: 0 | M52: 0 | N52: 0 | O52: 0 | P52: 0 | Q52: 0 | R52: 0 | S52: 0 | T52: 0 | U52: 0 | V52: 1 | W52: 1 | X52: 1 | Y52: 1 | Z52: 1 | AA52: 1 | AB52: 1 | AC52: 1 | AD52: 1 | AE52: 1 | AF52: 1 | AG52: 1 | AH52: 0 | AI52: 0 | AJ52: 0 | AK52: 0 | AL52: 0 | AM52: 0 | AN52: 0
D54: Long-term Portion Depreciation Base | E54: USD | F54: =LCOs!F199 -> 0.7 | G54: =F48*F54 -> 176400000 | I54: =$F$54*$G$54*I7 -> 0 | J54: 123480000 | K54: 123480000 | L54: 123480000 | M54: 123480000 | N54: 123480000 | O54: 123480000 | P54: 123480000 | Q54: 123480000 | R54: 123480000 | S54: 123480000 | T54: 123480000 | U54: 123480000 | V54: 123480000 | W54: 123480000 | X54: 123480000 | Y54: 123480000 | Z54: 123480000 | AA54: 123480000 | AB54: 123480000 | AC54: 123480000 | AD54: 123480000 | AE54: 123480000 | AF54: 123480000 | AG54: 123480000 | AH54: 0 | AI54: 0 | AJ54: 0 | AK54: 0 | AL54: 0 | AM54: 0 | AN54: 0
D55: Replacement Portion Depreciation Base | E55: USD | F55: =1-F54 -> 0.3 | G55: =F48*F55 -> 75600000 | I55: =$G$55*$F$55*I51 -> 0 | J55: =$G$55*$F$55*J51 -> 22680000 | K55: 22680000 | L55: 22680000 | M55: 22680000 | N55: 22680000 | O55: 22680000 | P55: 22680000 | Q55: 22680000 | R55: 22680000 | S55: 22680000 | T55: 22680000 | U55: 22680000 | V55: 0 | W55: 0 | X55: 0 | Y55: 0 | Z55: 0 | AA55: 0 | AB55: 0 | AC55: 0 | AD55: 0 | AE55: 0 | AF55: 0 | AG55: 0 | AH55: 0 | AI55: 0 | AJ55: 0 | AK55: 0 | AL55: 0 | AM55: 0 | AN55: 0
D56: First Replacement Depreciation Base | E56: USD | G56: =G55*G48 ->  | I56: =$G$56*I52 ->  | J56: =$G$56*J52 -> 
D58: Tax Depreciation on Long-term Base Portion | E58: USD | F58: =LCOs!F12 -> 24 | G58: =1/F58 -> 0.04166666667 | I58: =I54*$G$58 -> 0 | J58: =J54*$G$58 -> 5145000 | K58: 5145000 | L58: 5145000 | M58: 5145000 | N58: 5145000 | O58: 5145000 | P58: 5145000 | Q58: 5145000 | R58: 5145000 | S58: 5145000 | T58: 5145000 | U58: 5145000 | V58: 5145000 | W58: 5145000 | X58: 5145000 | Y58: 5145000 | Z58: 5145000 | AA58: 5145000 | AB58: 5145000 | AC58: 5145000 | AD58: 5145000 | AE58: 5145000 | AF58: 5145000 | AG58: 5145000 | AH58: 0 | AI58: 0 | AJ58: 0 | AK58: 0 | AL58: 0 | AM58: 0 | AN58: 0
D59: Replacement Portion Depreciation | E59: USD | F59: =H51 -> 12 | G59: =1/F59 -> 0.08333333333 | I59: =$G$59*I55 -> 0 | J59: =$G$59*J55 -> 1890000 | K59: 1890000 | L59: 1890000 | M59: 1890000 | N59: 1890000 | O59: 1890000 | P59: 1890000 | Q59: 1890000 | R59: 1890000 | S59: 1890000 | T59: 1890000 | U59: 1890000 | V59: 0 | W59: 0 | X59: 0 | Y59: 0 | Z59: 0 | AA59: 0 | AB59: 0 | AC59: 0 | AD59: 0 | AE59: 0 | AF59: 0 | AG59: 0 | AH59: 0 | AI59: 0 | AJ59: 0 | AK59: 0 | AL59: 0 | AM59: 0 | AN59: 0
D60: First Replacement Depreciation | E60: USD | F60: =H52 -> 12 | G60: =1/F60 -> 0.08333333333 | I60: =$G$60*I56 ->  | J60: =$G$60*J56 -> 
D62: Total Depreciation | E62: USD | F62: =NPV(F71,I62:AN62) ->  | I62: =SUM(I58:I60) ->  | J62: =SUM(J58:J60) -> 
D64: EBIT | E64: USD | I64: =I30-I62 ->  | J64: =J30-J62 -> 
D65: Taxes | E65: USD | F65: =LCOs!F20 -> 0 | I65: =I64*$F$65 ->  | J65: =J64*$F$65 -> 
D66: After-tax Cash Flow | E66: USD | G66: =SUM(I66:AN66) ->  | I66: =I39-I65 ->  | J66: =J39-J65 -> 
D68: Pre-Tax IRR | E68: % | F68: =IRR(I39:AN39) -> 
D69: Pre-Tax NPV | E69: USD | F69: =NPV(#REF!,I39:AN39) -> 
D70: After-tax IRR | E70: % | F70: =IRR(I66:AN66) -> 
D71: Target IRR | E71: % | F71: =LCOs!F26 -> 0.0794

Sheet Adder for Construction Period
D2: Target IRR | E2: 0.1
D4: Construction | E4: 1
D5: Period | F5: 1 | G5: 2 | H5: 3 | I5: 4 | J5: 5
D6: Construction Period | E6: =E4 -> 1 | F6: =F5<=$E$6 -> TRUE | G6: =G5<=$E$6 -> FALSE | H6: FALSE | I6: FALSE | J6: FALSE
D7: Operation Period | E7: =E4+1 -> 2 | F7: =F5=$E$7 -> FALSE | G7: =G5=$E$7 -> TRUE | H7: FALSE | I7: FALSE | J7: FALSE
D9: Total Cost | E9: 1000 | F9: =$E$9*F6 -> 1000 | G9: =$E$9*G6 -> 0 | H9: 0 | I9: 0 | J9: 0
D10: S-Curve | E10: =1/E4 -> 1 | F10: =$E$10*F6*F9 -> 1000 | G10: =$E$10*G6*G9 -> 0 | H10: 0 | I10: 0 | J10: 0
D11: Cash Flow | E11: =E19 -> 1100 | F11: =$E$11*F7 -> 0 | G11: =$E$11*G7 -> 1100 | H11: 0 | I11: 0 | J11: 0
D12: Net Cash Flow | F12: =F11-F10 -> -1000 | G12: =G11-G10 -> 1100 | H12: 0 | I12: 0 | J12: 0
D13: IRR | E13: =IRR(12:12) -> 0.1
D15: LCOE with Construction | E15: =E9 -> 1000
D16: Compound Factor for Construction | E16: =FV(E2,E4,-1/E4) -> 1 | G16: =_xlfn.FORMULATEXT(E16) -> =FV(E2,E4,-1/E4)
D17: Adjusted Cost | E17: =E15*E16 -> 1000 | G17: =_xlfn.FORMULATEXT(E17) -> =E15*E16
D18: PMT factor for One Year | E18: =PMT(E2,1,-1) -> 1.1 | G18: =_xlfn.FORMULATEXT(E18) -> =PMT(E2,1,-1)
D19: Total Cost Recovery | E19: =E17*E18 -> 1100 | G19: =_xlfn.FORMULATEXT(E19) -> =E17*E18
D21: NPV of Construction | E21: =FV(E2,E4,F10) -> -1000 | G21: =_xlfn.FORMULATEXT(E21) -> =FV(E2,E4,F10)
D22: Total Construction cost | E22: =E9 -> 1000 | G22: =_xlfn.FORMULATEXT(E22) -> =E9
D23: Ratio | E23: =E22/-E21 -> 1 | G23: =_xlfn.FORMULATEXT(E23) -> =E22/-E21
D24: Factor | E24: =-E21/E22 -> 1 | G24: =_xlfn.FORMULATEXT(E24) -> =-E21/E22
D28: Period | F28: 1 | G28: 2 | H28: 3 | I28: 4 | J28: 5
D29: Total Cost | F29: 1000
D30: S-Curve | E30: 1 | F30: =F29 -> 1000 | G30: =G29*$E$10 -> 0 | H30: =H29*$E$10 -> 0 | I30: =I29*$E$10 -> 0
D31: Cash Flow | G31: 1100
D32: Net Cash Flow | F32: =F31-F30 -> -1000 | G32: =G31-G30 -> 1100 | H32: 0 | I32: 0 | J32: 0
E33: =IRR(32:32) -> 0.1
E35: =NPV(E2,32:32) -> -1.033516707e-12
D37: SIMPLE LCOE
D38: Capital Costs | E38: 1000
D39: pmt | E39: =PMT(E2,1,-1) -> 1.1
D40: CapEx Adj. by PMT | E40: =E38*E39 -> 1100

Sheet Stages
A1: Conceptual Design (CD) | H1: Basic Design: FEED | O1: Detailed Design
A2: Purpose of Project | H2: Well Design package to run feasibility from CD. Estimate around +/-10% | O2: Leads to AFC (Approved for Construction)
A3: Location of Plant | H3: Startup Package for Detailed Design (DD) | O3: Electrical, Instrumentation, Structural, Building Layout.
A4: Overall Cost (+/- 30%) | O4: Construction Details.
H5: Deliver: | O5: Installation Details.
A6: Deliver: | H6: Process Flow Diagrams | O6: Commissioning Details.
A7: Overall Production | H7: P&Es | O7: Start Up and Maintenance Details.
A8: Overall Requirements | H8: Process Simulations/Calculations.
A9: Overall Block Flow Diagram | H9: Equipment Lists
A10: Preliminary Study | H10: Instrument Lists
A11: Overall Cost Estimate | H11: Site Plans
H12: Plot Plans (Overall Layout approved)
A13: Conceive and plan the structure of the system. | H13: Preliminary Equipment Specifications (Datasheets)
A14: Define the Scope.
H15: Basic study to allow everyone to agree on the exact scope of work.
A16: If CD approved by BOD (Board of Directors) proceed to Basic Design | H16: FEED is necessary for Project Finance
A17: Source: PMI.
A23: Where are we Now?
